Body Name,Document Number,Service,Type of Expenditure,Invoice Date,Supplier Name,Cost to the Council (Amount Exc VAT),Month
EREWASH BOROUGH COUNCIL,224362,Balance Sheet,COVID 19 - Additional Restrictions Grant,01/03/21,REDACTED PERSONAL DATA,"1,500.00",Mar-21
EREWASH BOROUGH COUNCIL,224363,Balance Sheet,COVID 19 - Additional Restrictions Grant,01/03/21,AMK AUTOMOTIVE SOLUTIONS,"1,500.00",Mar-21
EREWASH BOROUGH COUNCIL,224364,Balance Sheet,COVID 19 - Additional Restrictions Grant,01/03/21,REDACTED PERSONAL DATA,"1,500.00",Mar-21
EREWASH BOROUGH COUNCIL,224371,Balance Sheet,COVID 19 - Additional Restrictions Grant,01/03/21,DAVID GUNDRY UPHOLSTERY LTD.,"1,500.00",Mar-21
EREWASH BOROUGH COUNCIL,224584,Balance Sheet,COVID 19 - Additional Restrictions Grant,02/03/21,RTRIIBE,"1,571.00",Mar-21
EREWASH BOROUGH COUNCIL,224590,Balance Sheet,COVID 19 - Additional Restrictions Grant,02/03/21,REDACTED PERSONAL DATA,"1,571.00",Mar-21
EREWASH BOROUGH COUNCIL,224601,Balance Sheet,COVID 19 - Additional Restrictions Grant,02/03/21,REDACTED PERSONAL DATA,"1,571.00",Mar-21
EREWASH BOROUGH COUNCIL,224604,Balance Sheet,COVID 19 - Additional Restrictions Grant,02/03/21,REDACTED PERSONAL DATA,"1,571.00",Mar-21
EREWASH BOROUGH COUNCIL,224605,Balance Sheet,COVID 19 - Additional Restrictions Grant,02/03/21,KEV JAMES DRIVER TRAINING LTD,"1,571.00",Mar-21
EREWASH BOROUGH COUNCIL,224522,Balance Sheet,COVID 19 - Additional Restrictions Grant,02/03/21,BATTERED ILKESTON LTD,"1,571.00",Mar-21
EREWASH BOROUGH COUNCIL,224526,Balance Sheet,COVID 19 - Additional Restrictions Grant,02/03/21,STAY & PLAY FOR DOGS,"1,571.00",Mar-21
EREWASH BOROUGH COUNCIL,224537,Balance Sheet,COVID 19 - Additional Restrictions Grant,02/03/21,STUARTS HAIR & BEAUTY.,"1,571.00",Mar-21
EREWASH BOROUGH COUNCIL,224546,Balance Sheet,COVID 19 - Additional Restrictions Grant,02/03/21,FLEET 2 WHEELS DRIVING SCHOOL,"1,571.00",Mar-21
EREWASH BOROUGH COUNCIL,224552,Balance Sheet,COVID 19 - Additional Restrictions Grant,02/03/21,EXPRESS CHIPPY & PIZZA LTD,"1,571.00",Mar-21
EREWASH BOROUGH COUNCIL,224556,Balance Sheet,COVID 19 - Additional Restrictions Grant,02/03/21,REDACTED PERSONAL DATA,"1,571.00",Mar-21
EREWASH BOROUGH COUNCIL,224424,Balance Sheet,COVID 19 - Additional Restrictions Grant,02/03/21,A52 CARS LIMITED,"1,571.00",Mar-21
EREWASH BOROUGH COUNCIL,224432,Balance Sheet,COVID 19 - Additional Restrictions Grant,02/03/21,PKB ACCESSORIES,786.00,Mar-21
EREWASH BOROUGH COUNCIL,224435,Balance Sheet,COVID 19 - Additional Restrictions Grant,02/03/21,REDACTED PERSONAL DATA,"1,571.00",Mar-21
EREWASH BOROUGH COUNCIL,224445,Balance Sheet,COVID 19 - Additional Restrictions Grant,02/03/21,REDACTED PERSONAL DATA,"1,571.00",Mar-21
EREWASH BOROUGH COUNCIL,224448,Balance Sheet,COVID 19 - Additional Restrictions Grant,02/03/21,POP UP CORNER SHOP,"1,571.00",Mar-21
EREWASH BOROUGH COUNCIL,224456,Balance Sheet,COVID 19 - Additional Restrictions Grant,02/03/21,LITTLE WOLF ENTERTAINMENT,"2,357.00",Mar-21
EREWASH BOROUGH COUNCIL,224461,Balance Sheet,COVID 19 - Additional Restrictions Grant,02/03/21,IAN LORDS MINIBUS SERVICES,"1,571.00",Mar-21
EREWASH BOROUGH COUNCIL,224458,Balance Sheet,COVID 19 - Additional Restrictions Grant,02/03/21,REDACTED PERSONAL DATA,"1,571.00",Mar-21
EREWASH BOROUGH COUNCIL,224459,Balance Sheet,COVID 19 - Additional Restrictions Grant,02/03/21,HAIR BY NATALIE,"1,571.00",Mar-21
EREWASH BOROUGH COUNCIL,224471,Balance Sheet,COVID 19 - Additional Restrictions Grant,02/03/21,FOREST SCHOOL NURSERIES LTD,"2,357.00",Mar-21
EREWASH BOROUGH COUNCIL,224474,Balance Sheet,COVID 19 - Additional Restrictions Grant,02/03/21,NIC JONES AGILITY,"1,571.00",Mar-21
EREWASH BOROUGH COUNCIL,224476,Balance Sheet,COVID 19 - Additional Restrictions Grant,02/03/21,CASTLEFIELD KENNELS LIMITED,"1,571.00",Mar-21
EREWASH BOROUGH COUNCIL,224496,Balance Sheet,COVID 19 - Additional Restrictions Grant,02/03/21,NICOLA SUMPTER HAIR AND MAKE UP,"1,571.00",Mar-21
EREWASH BOROUGH COUNCIL,224500,Balance Sheet,COVID 19 - Additional Restrictions Grant,02/03/21,DOUBLE APEX TV LTD,"1,571.00",Mar-21
EREWASH BOROUGH COUNCIL,224513,Balance Sheet,COVID 19 - Additional Restrictions Grant,02/03/21,NORTON PLASTICS LTD,"2,357.00",Mar-21
EREWASH BOROUGH COUNCIL,224514,Balance Sheet,COVID 19 - Additional Restrictions Grant,02/03/21,ONESTOPCARSHOPUK LIMITED,"1,571.00",Mar-21
EREWASH BOROUGH COUNCIL,224570,Balance Sheet,COVID 19 - Additional Restrictions Grant,02/03/21,MOMMAS SOUL FOOD KITCHEN,"1,571.00",Mar-21
EREWASH BOROUGH COUNCIL,224576,Balance Sheet,COVID 19 - Additional Restrictions Grant,02/03/21,DB SPORTS MASSAGE THERAPY,"1,571.00",Mar-21
EREWASH BOROUGH COUNCIL,224578,Balance Sheet,COVID 19 - Additional Restrictions Grant,02/03/21,REDACTED PERSONAL DATA,786.00,Mar-21
EREWASH BOROUGH COUNCIL,224665,Balance Sheet,COVID 19 - Additional Restrictions Grant,03/03/21,ROLL WITH IT SANDWICH SHOP,"1,571.00",Mar-21
EREWASH BOROUGH COUNCIL,224666,Balance Sheet,COVID 19 - Additional Restrictions Grant,03/03/21,ST LAURENCE PRE-SCHOOL & CLUB 11 LTD,"2,357.00",Mar-21
EREWASH BOROUGH COUNCIL,224668,Balance Sheet,COVID 19 - Additional Restrictions Grant,03/03/21,LYNDSEY MURRAY HAIR,"1,571.00",Mar-21
EREWASH BOROUGH COUNCIL,224672,Balance Sheet,COVID 19 - Additional Restrictions Grant,03/03/21,REDACTED PERSONAL DATA,"1,571.00",Mar-21
EREWASH BOROUGH COUNCIL,224676,Balance Sheet,COVID 19 - Additional Restrictions Grant,03/03/21,REDACTED PERSONAL DATA,"1,571.00",Mar-21
EREWASH BOROUGH COUNCIL,224656,Balance Sheet,COVID 19 - Additional Restrictions Grant,03/03/21,VICKI HEAVENS MOBILE HAIRDRESSING,"1,571.00",Mar-21
EREWASH BOROUGH COUNCIL,224611,Balance Sheet,COVID 19 - Additional Restrictions Grant,02/03/21,TERESA SHAW T/A POROSOL PRINT,"1,571.00",Mar-21
EREWASH BOROUGH COUNCIL,224614,Balance Sheet,COVID 19 - Additional Restrictions Grant,02/03/21,ILKESTON RUGBY CLUB TRADING LTD,"1,571.00",Mar-21
EREWASH BOROUGH COUNCIL,224624,Balance Sheet,COVID 19 - Additional Restrictions Grant,02/03/21,REDACTED PERSONAL DATA,"1,571.00",Mar-21
EREWASH BOROUGH COUNCIL,224631,Balance Sheet,COVID 19 - Additional Restrictions Grant,02/03/21,REDACTED PERSONAL DATA,"1,571.00",Mar-21
EREWASH BOROUGH COUNCIL,224639,Balance Sheet,COVID 19 - Additional Restrictions Grant,03/03/21,CRAZYFOREST LTD,"1,571.00",Mar-21
EREWASH BOROUGH COUNCIL,224652,Balance Sheet,COVID 19 - Additional Restrictions Grant,03/03/21,REDACTED PERSONAL DATA,786.00,Mar-21
EREWASH BOROUGH COUNCIL,224684,Balance Sheet,COVID 19 - Additional Restrictions Grant,03/03/21,REDACTED PERSONAL DATA,"1,571.00",Mar-21
EREWASH BOROUGH COUNCIL,224823,Balance Sheet,COVID 19 - Additional Restrictions Grant,09/03/21,C AND A MOTOR SERVICES,"3,071.00",Mar-21
EREWASH BOROUGH COUNCIL,224831,Balance Sheet,COVID 19 - Additional Restrictions Grant,09/03/21,CALIPOLOGY LIMITED,"5,071.00",Mar-21
EREWASH BOROUGH COUNCIL,224947,Balance Sheet,COVID 19 - Additional Restrictions Grant,16/03/21,THE MILL SALON,"3,071.00",Mar-21
EREWASH BOROUGH COUNCIL,225072,Balance Sheet,COVID 19 - Additional Restrictions Grant,23/03/21,LIFESTYLE1.COM LTD,"3,071.00",Mar-21
EREWASH BOROUGH COUNCIL,225296,Balance Sheet,COVID 19 - Additional Restrictions Grant,30/03/21,CHARLOTTE HALLIDAY HAIR,"3,071.00",Mar-21
EREWASH BOROUGH COUNCIL,225301,Balance Sheet,COVID 19 - Additional Restrictions Grant,30/03/21,V M HAIRDRESSING,"3,071.00",Mar-21
EREWASH BOROUGH COUNCIL,224862,Balance Sheet,Payroll Collection A/c - Recovery of Student Loan,15/03/21,HMRC CUMBERNAULD,"1,235.00",Mar-21
EREWASH BOROUGH COUNCIL,225180,Treasury Management and Bank Charges,Lloyds Bank Charges for Debits and Credits,10/02/21,LLOYDS BANK,160.08,Mar-21
EREWASH BOROUGH COUNCIL,225177,Treasury Management and Bank Charges,Credit/Debit Card Charges,09/03/21,CAPITA,"2,377.93",Mar-21
EREWASH BOROUGH COUNCIL,225276,Neighbourhood Wardens,Vehicle Tracking Repairs and Maintenance,01/02/21,MASTERNAUT (UK) LTD,313.95,Mar-21
EREWASH BOROUGH COUNCIL,224415,Balance Sheet,Bond Deposit Accounts S106,24/02/21,DERBYSHIRE COUNTY COUNCIL...,"116,667.00",Mar-21
EREWASH BOROUGH COUNCIL,224417,Balance Sheet,Bond Deposit Accounts S106,24/02/21,DERBYSHIRE COUNTY COUNCIL...,"91,192.08",Mar-21
EREWASH BOROUGH COUNCIL,224412,Green Space,Project Grants,24/02/21,HAGSSMP,698.00,Mar-21
EREWASH BOROUGH COUNCIL,224897,Economic Development,Project Grants,17/02/21,OVE ARUP & PARTNERS LTD,"26,530.00",Mar-21
EREWASH BOROUGH COUNCIL,224899,Economic Development,Project Grants,05/03/21,DERBYSHIRE COUNTY COUNCIL...,"28,500.00",Mar-21
EREWASH BOROUGH COUNCIL,223784,Property and Estates,Reactive Maintenance,12/02/21,MDB PLUMBING (NOTTM) LTD,308.30,Mar-21
EREWASH BOROUGH COUNCIL,224204,Property and Estates,Reactive Maintenance,16/02/21,STEELCRAFT FABRICATIONS,210.00,Mar-21
EREWASH BOROUGH COUNCIL,224927,Property and Estates,PPM Mechanical and Equipment,09/03/21,CONCEPT ELEVATORS (UK) LTD,360.67,Mar-21
EREWASH BOROUGH COUNCIL,225258,Property and Estates,PPM Mechanical and Equipment,28/02/21,ORTON MECHANICAL SERVICES,402.59,Mar-21
EREWASH BOROUGH COUNCIL,224863,Balance Sheet,Payments in Advance,15/03/21,DERBYSHIRE COUNTY COUNCIL...,"346,113.00",Mar-21
EREWASH BOROUGH COUNCIL,224247,Street Scene,Repairs and Maintenance,19/02/21,BUCHER MUNICIPAL LTD,303.03,Mar-21
EREWASH BOROUGH COUNCIL,224838,Green Space,Repairs and Maintenance,05/03/21,HENTON & CHATTELL LTD,377.88,Mar-21
EREWASH BOROUGH COUNCIL,224978,Green Space,Repairs and Maintenance,05/03/21,HENTON & CHATTELL LTD,"1,161.62",Mar-21
EREWASH BOROUGH COUNCIL,225017,Kerbside Dry Recycling Collection,Repairs and Maintenance,22/01/21,TERBERG MATEC UK,381.67,Mar-21
EREWASH BOROUGH COUNCIL,225245,Kerbside Dry Recycling Collection,Repairs and Maintenance,18/03/21,DENNIS EAGLE LTD,228.79,Mar-21
EREWASH BOROUGH COUNCIL,225011,Household/Residual Waste Collection,Repairs and Maintenance,26/02/21,WILLIAM WEST & SONS (ILKESTON) LIMITED,978.90,Mar-21
EREWASH BOROUGH COUNCIL,225038,Household/Residual Waste Collection,Repairs and Maintenance,16/03/21,DENNIS EAGLE LTD,327.27,Mar-21
EREWASH BOROUGH COUNCIL,225276,Green Space,General Equipment,01/02/21,MASTERNAUT (UK) LTD,35.34,Mar-21
EREWASH BOROUGH COUNCIL,225320,Basic Command Unit,General Equipment,16/03/21,JNE SECURITY LIMITED,"1,349.00",Mar-21
EREWASH BOROUGH COUNCIL,224847,Reprographics,Equipment Leasing Charge,27/01/21,KONICA MINOLTA BUSINESS SOLUTIONS (UK) LTD,273.18,Mar-21
EREWASH BOROUGH COUNCIL,225226,ICT Support Services,Maintenance of Equipment,26/03/21,JIGSAW BUSINESS NETWORKS LIMITED,"1,840.00",Mar-21
EREWASH BOROUGH COUNCIL,224743,Green Space,Materials/Consumables,05/03/21,STEELCRAFT FABRICATIONS,350.00,Mar-21
EREWASH BOROUGH COUNCIL,224343,Public Conveniences,Materials/Consumables,24/02/21,TUDOR ENVIRONMENTAL,"1,070.70",Mar-21
EREWASH BOROUGH COUNCIL,224794,Street Scene,Materials/Consumables,25/02/21,ILKESTON PLY & DIY LTD,154.17,Mar-21
EREWASH BOROUGH COUNCIL,225020,General Entertainment,Printing and Stationery,22/03/21,PICTORIAL LTD,280.00,Mar-21
EREWASH BOROUGH COUNCIL,225091,Revenues and Benefits,Printing and Stationery,01/04/21,TAMESIDE METROPOLITAN BOROUGH,"1,600.00",Mar-21
EREWASH BOROUGH COUNCIL,224720,Community Services,Printing and Stationery,01/12/20,THOMSON REUTERS,"3,029.00",Mar-21
EREWASH BOROUGH COUNCIL,223802,Registration of Electors,Printing and Stationery,09/02/21,THOMSON REUTERS,288.00,Mar-21
EREWASH BOROUGH COUNCIL,224967,Homelessness,Temporary Accommodation,02/02/21,LLOYDS BANK,834.06,Mar-21
EREWASH BOROUGH COUNCIL,225360,Homelessness,Temporary Accommodation,01/03/21,NOVOTEL NOTTINGHAM,"1,200.08",Mar-21
EREWASH BOROUGH COUNCIL,225058,Development Control - Fee Earning,Computer Software,15/02/21,CIVICA UK LIMITED,"10,209.23",Mar-21
EREWASH BOROUGH COUNCIL,224805,Housing Benefit Administration,Computer Software,04/03/21,CIVICA UK LIMITED,"25,000.00",Mar-21
EREWASH BOROUGH COUNCIL,224721,Communications,General Publicity and Promotion,25/02/21,WALSTEAD PETERBOROUGH LIMITED,"4,179.00",Mar-21
EREWASH BOROUGH COUNCIL,225246,Arts Development,Special Events,24/03/21,PICTORIAL LTD,"2,000.00",Mar-21
EREWASH BOROUGH COUNCIL,225336,Leisure Contract,Contracted Services,19/03/21,PARKWOOD LEISURE LTD,"26,831.98",Mar-21
EREWASH BOROUGH COUNCIL,224877,Green Space,Contracted Services,08/03/21,RAILWAY SLEEPERS Ltd,"1,950.00",Mar-21
EREWASH BOROUGH COUNCIL,224401,Leisure Contract,Contracted Services,22/02/21,PARKWOOD LEISURE LTD,"86,064.00",Mar-21
EREWASH BOROUGH COUNCIL,225173,Occupational Health and Welfare,Occupational Health Service,05/02/21,MEDIGOLD HEALTH CONSULTANCY LIMITED,697.00,Mar-21
EREWASH BOROUGH COUNCIL,224347,Pride In Erewash,Spend to Save,23/02/21,PROTECTIVE WEAR SUPPLIES LTD,453.17,Mar-21
EREWASH BOROUGH COUNCIL,224855,Property and Estates,Alarms Reactive Maintenance,09/03/21,TECSERV UK,631.08,Mar-21
EREWASH BOROUGH COUNCIL,225342,Development Control - Fee Earning,Planning Fees,30/03/21,PORTALPLANQUEST LTD,"3,234.00",Mar-21
EREWASH BOROUGH COUNCIL,223812,Transport Trading Account,Agency Staff,05/02/21,TOTAL TRANSPORT COMPLIANCE,"1,500.00",Mar-21
EREWASH BOROUGH COUNCIL,224709,Transport Trading Account,Agency Staff,22/02/21,QUESTECH RECRUITMENT LTD,906.50,Mar-21
EREWASH BOROUGH COUNCIL,224300,Homelessness,Agency Staff,10/02/21,GREENACRE RECRUITMENT,608.01,Mar-21
EREWASH BOROUGH COUNCIL,224403,Green Space,Agency Staff,15/02/21,EXTRA PERSONNEL LTD,"1,157.52",Mar-21
EREWASH BOROUGH COUNCIL,224771,Green Space,Agency Staff,22/02/21,EXTRA PERSONNEL LTD,405.30,Mar-21
EREWASH BOROUGH COUNCIL,224873,Public Conveniences,Agency Staff,01/03/21,EXTRA PERSONNEL LTD,405.30,Mar-21
EREWASH BOROUGH COUNCIL,225217,Homelessness,Agency Staff,03/03/21,GREENACRE RECRUITMENT,306.80,Mar-21
EREWASH BOROUGH COUNCIL,224990,Household/Residual Waste Collection,Agency Staff,18/02/21,QUALITY SERVICE RECRUITMENT LTD,651.13,Mar-21
EREWASH BOROUGH COUNCIL,224993,Household/Residual Waste Collection,Agency Staff,11/03/21,QUALITY SERVICE RECRUITMENT LTD,333.00,Mar-21
EREWASH BOROUGH COUNCIL,225350,Council Tax Collection,Salaries,04/01/21,REDACTED PERSONAL DATA,"4,274.19",Mar-21
EREWASH BOROUGH COUNCIL,224987,Development Control - Fee Earning,Courses and Seminars,05/03/21,NOTTINGHAM CITY COUNCIL..,575.00,Mar-21
EREWASH BOROUGH COUNCIL,225279,Green Space,Training,25/03/21,DART LTD,"2,856.00",Mar-21
EREWASH BOROUGH COUNCIL,224390,Long Eaton Market,Electricity,18/02/21,TOTAL GAS & POWER LTD,49.78,Mar-21
EREWASH BOROUGH COUNCIL,224390,Public Conveniences,Electricity,18/02/21,TOTAL GAS & POWER LTD,671.52,Mar-21
EREWASH BOROUGH COUNCIL,224390,Shopmobility - Ilkeston,Electricity,18/02/21,TOTAL GAS & POWER LTD,273.26,Mar-21
EREWASH BOROUGH COUNCIL,224129,Rutland Sports Park,Gas,16/02/21,TOTAL GAS & POWER LTD,230.16,Mar-21
EREWASH BOROUGH COUNCIL,224376,Balance Sheet,COVID 19 - Additional Restrictions Grant,01/03/21,PURPLE GIRAFFE JOINERY & INSTALLATIONS LTD,"3,500.00",Mar-21
EREWASH BOROUGH COUNCIL,224370,Balance Sheet,COVID 19 - Additional Restrictions Grant,01/03/21,REDACTED PERSONAL DATA,"1,500.00",Mar-21
EREWASH BOROUGH COUNCIL,224372,Balance Sheet,COVID 19 - Additional Restrictions Grant,01/03/21,REDACTED PERSONAL DATA,"1,500.00",Mar-21
EREWASH BOROUGH COUNCIL,224359,Balance Sheet,COVID 19 - Additional Restrictions Grant,01/03/21,REDACTED PERSONAL DATA,"3,500.00",Mar-21
EREWASH BOROUGH COUNCIL,224598,Balance Sheet,COVID 19 - Additional Restrictions Grant,02/03/21,EMPIRE AUTOMATIC DRIVING SCHOOL,"1,571.00",Mar-21
EREWASH BOROUGH COUNCIL,224607,Balance Sheet,COVID 19 - Additional Restrictions Grant,02/03/21,DOGS R US,"1,571.00",Mar-21
EREWASH BOROUGH COUNCIL,224608,Balance Sheet,COVID 19 - Additional Restrictions Grant,02/03/21,REDACTED PERSONAL DATA,"1,571.00",Mar-21
EREWASH BOROUGH COUNCIL,224520,Balance Sheet,COVID 19 - Additional Restrictions Grant,02/03/21,STUARTS HAIR & BEAUTY,"1,571.00",Mar-21
EREWASH BOROUGH COUNCIL,224523,Balance Sheet,COVID 19 - Additional Restrictions Grant,02/03/21,EAST MIDLANDS MEDICAL SERVICES LTD,"1,571.00",Mar-21
EREWASH BOROUGH COUNCIL,224529,Balance Sheet,COVID 19 - Additional Restrictions Grant,02/03/21,STREET FOOD KITCHEN,"1,571.00",Mar-21
EREWASH BOROUGH COUNCIL,224535,Balance Sheet,COVID 19 - Additional Restrictions Grant,02/03/21,UK BIKE FIT,"1,571.00",Mar-21
EREWASH BOROUGH COUNCIL,224540,Balance Sheet,COVID 19 - Additional Restrictions Grant,02/03/21,AMS PLATINUM SERVICES LTD,"1,571.00",Mar-21
EREWASH BOROUGH COUNCIL,224542,Balance Sheet,COVID 19 - Additional Restrictions Grant,02/03/21,REDACTED PERSONAL DATA,"1,571.00",Mar-21
EREWASH BOROUGH COUNCIL,224554,Balance Sheet,COVID 19 - Additional Restrictions Grant,02/03/21,REDACTED PERSONAL DATA,"1,571.00",Mar-21
EREWASH BOROUGH COUNCIL,224559,Balance Sheet,COVID 19 - Additional Restrictions Grant,02/03/21,SHARON STANSFIELD BRASS TUITION,"1,571.00",Mar-21
EREWASH BOROUGH COUNCIL,224427,Balance Sheet,COVID 19 - Additional Restrictions Grant,02/03/21,SHERBETS EVENTS UK LTD,"1,571.00",Mar-21
EREWASH BOROUGH COUNCIL,224433,Balance Sheet,COVID 19 - Additional Restrictions Grant,02/03/21,A.A.M INSTALLATIONS LTD,"1,571.00",Mar-21
EREWASH BOROUGH COUNCIL,224436,Balance Sheet,COVID 19 - Additional Restrictions Grant,02/03/21,REDACTED PERSONAL DATA,"1,571.00",Mar-21
EREWASH BOROUGH COUNCIL,224440,Balance Sheet,COVID 19 - Additional Restrictions Grant,02/03/21,TRAIN WITH LEE,"1,571.00",Mar-21
EREWASH BOROUGH COUNCIL,224468,Balance Sheet,COVID 19 - Additional Restrictions Grant,02/03/21,OCKBROOK BOARDING CATTERY,"1,571.00",Mar-21
EREWASH BOROUGH COUNCIL,224475,Balance Sheet,COVID 19 - Additional Restrictions Grant,02/03/21,L A B BY LAUREN,"1,571.00",Mar-21
EREWASH BOROUGH COUNCIL,224481,Balance Sheet,COVID 19 - Additional Restrictions Grant,02/03/21,ELENA'S BEAUTY & NAILS,"1,571.00",Mar-21
EREWASH BOROUGH COUNCIL,224485,Balance Sheet,COVID 19 - Additional Restrictions Grant,02/03/21,HEALEYS TOILETRIES,"1,571.00",Mar-21
EREWASH BOROUGH COUNCIL,224505,Balance Sheet,COVID 19 - Additional Restrictions Grant,02/03/21,T/A APPEARANCE HAIR & BEAUTY,"1,571.00",Mar-21
EREWASH BOROUGH COUNCIL,224512,Balance Sheet,COVID 19 - Additional Restrictions Grant,02/03/21,BEAUMONT INDUSTRIES,"1,571.00",Mar-21
EREWASH BOROUGH COUNCIL,224568,Balance Sheet,COVID 19 - Additional Restrictions Grant,02/03/21,THE KNITTING ROOM,"1,571.00",Mar-21
EREWASH BOROUGH COUNCIL,224574,Balance Sheet,COVID 19 - Additional Restrictions Grant,02/03/21,REDACTED PERSONAL DATA,"1,571.00",Mar-21
EREWASH BOROUGH COUNCIL,224577,Balance Sheet,COVID 19 - Additional Restrictions Grant,02/03/21,REDACTED PERSONAL DATA,"1,571.00",Mar-21
EREWASH BOROUGH COUNCIL,224579,Balance Sheet,COVID 19 - Additional Restrictions Grant,02/03/21,DMB PLASTERING,"1,571.00",Mar-21
EREWASH BOROUGH COUNCIL,224583,Balance Sheet,COVID 19 - Additional Restrictions Grant,02/03/21,JOY M KUNNAMPADAVIL,"1,571.00",Mar-21
EREWASH BOROUGH COUNCIL,224675,Balance Sheet,COVID 19 - Additional Restrictions Grant,03/03/21,SAMS BODYSHOP LTD,"1,571.00",Mar-21
EREWASH BOROUGH COUNCIL,224609,Balance Sheet,COVID 19 - Additional Restrictions Grant,02/03/21,EXCLUSIVE BY DESIGN UK LTD,"1,571.00",Mar-21
EREWASH BOROUGH COUNCIL,224610,Balance Sheet,COVID 19 - Additional Restrictions Grant,02/03/21,REDACTED PERSONAL DATA,"1,571.00",Mar-21
EREWASH BOROUGH COUNCIL,224618,Balance Sheet,COVID 19 - Additional Restrictions Grant,02/03/21,ARMSTRONG AVIATIO CLOTHING LTD T/A ILKESTON PPE & WORKWEAR,"2,357.00",Mar-21
EREWASH BOROUGH COUNCIL,224644,Balance Sheet,COVID 19 - Additional Restrictions Grant,03/03/21,REDACTED PERSONAL DATA,"1,571.00",Mar-21
EREWASH BOROUGH COUNCIL,224686,Balance Sheet,COVID 19 - Additional Restrictions Grant,03/03/21,REDACTED PERSONAL DATA,"1,571.00",Mar-21
EREWASH BOROUGH COUNCIL,224819,Balance Sheet,COVID 19 - Additional Restrictions Grant,09/03/21,RILEY'S TAXIS,"3,071.00",Mar-21
EREWASH BOROUGH COUNCIL,224829,Balance Sheet,COVID 19 - Additional Restrictions Grant,09/03/21,REDACTED PERSONAL DATA,"3,071.00",Mar-21
EREWASH BOROUGH COUNCIL,224812,Balance Sheet,COVID 19 - Additional Restrictions Grant,09/03/21,R B HAIR,"3,071.00",Mar-21
EREWASH BOROUGH COUNCIL,224808,Balance Sheet,COVID 19 - Additional Restrictions Grant,09/03/21,THE TRAVEL SNOB LTD,"5,071.00",Mar-21
EREWASH BOROUGH COUNCIL,224929,Balance Sheet,COVID 19 - Additional Restrictions Grant,16/03/21,ATHERTON SIGNS & INSTALLATIONS LIMITED,"3,071.00",Mar-21
EREWASH BOROUGH COUNCIL,224952,Balance Sheet,COVID 19 - Additional Restrictions Grant,16/03/21,REDACTED PERSONAL DATA,"3,071.00",Mar-21
EREWASH BOROUGH COUNCIL,224939,Balance Sheet,COVID 19 - Additional Restrictions Grant,16/03/21,MOORLEYS PRINT & PUBLISHING LIMITED,"3,071.00",Mar-21
EREWASH BOROUGH COUNCIL,224954,Balance Sheet,COVID 19 - Additional Restrictions Grant,16/03/21,CREED FOODSERVICE LTD,"25,000.00",Mar-21
EREWASH BOROUGH COUNCIL,224944,Balance Sheet,COVID 19 - Additional Restrictions Grant,16/03/21,FNCSR LTD,"4,607.00",Mar-21
EREWASH BOROUGH COUNCIL,224945,Balance Sheet,COVID 19 - Additional Restrictions Grant,16/03/21,MEL CRAFF DRIVING SCHOOL,"3,071.00",Mar-21
EREWASH BOROUGH COUNCIL,225067,Balance Sheet,COVID 19 - Additional Restrictions Grant,23/03/21,REDACTED PERSONAL DATA,"3,071.00",Mar-21
EREWASH BOROUGH COUNCIL,225066,Balance Sheet,COVID 19 - Additional Restrictions Grant,23/03/21,REDACTED PERSONAL DATA,"1,536.00",Mar-21
EREWASH BOROUGH COUNCIL,225070,Balance Sheet,COVID 19 - Additional Restrictions Grant,23/03/21,REDACTED PERSONAL DATA,"3,071.00",Mar-21
EREWASH BOROUGH COUNCIL,225071,Balance Sheet,COVID 19 - Additional Restrictions Grant,23/03/21,THE BROW EDIT,"3,071.00",Mar-21
EREWASH BOROUGH COUNCIL,225292,Balance Sheet,COVID 19 - Additional Restrictions Grant,30/03/21,SMITH-GUARINO TRADING LTD,"3,071.00",Mar-21
EREWASH BOROUGH COUNCIL,225293,Balance Sheet,COVID 19 - Additional Restrictions Grant,30/03/21,JDB ENTERPRISES ILKESTON LTD,"4,607.00",Mar-21
EREWASH BOROUGH COUNCIL,225302,Balance Sheet,COVID 19 - Additional Restrictions Grant,30/03/21,REDACTED PERSONAL DATA,"3,071.00",Mar-21
EREWASH BOROUGH COUNCIL,225303,Balance Sheet,COVID 19 - Additional Restrictions Grant,30/03/21,TOUCH OF HEAVEN,"3,071.00",Mar-21
EREWASH BOROUGH COUNCIL,224864,Balance Sheet,Payroll Collection A/c - Superannuation,15/03/21,DERBYSHIRE COUNTY COUNCIL...,"207,841.10",Mar-21
EREWASH BOROUGH COUNCIL,225276,Household/Residual Waste Collection,Vehicle Tracking Repairs and Maintenance,01/02/21,MASTERNAUT (UK) LTD,644.20,Mar-21
EREWASH BOROUGH COUNCIL,225276,Street Scene,Vehicle Tracking Repairs and Maintenance,01/02/21,MASTERNAUT (UK) LTD,547.71,Mar-21
EREWASH BOROUGH COUNCIL,224868,Green Space,Project Grants,03/03/21,PROTECTIVE WEAR SUPPLIES LTD,155.15,Mar-21
EREWASH BOROUGH COUNCIL,224869,Green Space,Project Grants,09/03/21,PROTECTIVE WEAR SUPPLIES LTD,84.29,Mar-21
EREWASH BOROUGH COUNCIL,224702,Green Space,Reactive Maintenance,26/02/21,N B CONSTRUCTION,475.75,Mar-21
EREWASH BOROUGH COUNCIL,225717,Public Conveniences,Reactive Maintenance,02/03/21,LLOYDS BANK,37.34,Mar-21
EREWASH BOROUGH COUNCIL,224391,Property and Estates,Reactive Maintenance,22/02/21,ALPHA PARTNER (MIDLANDS)  LIMITED,"1,780.00",Mar-21
EREWASH BOROUGH COUNCIL,224342,Training - Personnel Costs Only,E Learning,26/02/21,LEARNING POOL LTD,"12,200.00",Mar-21
EREWASH BOROUGH COUNCIL,225112,Balance Sheet,PCC - Election,16/03/21,SCI PRINT LTD,"3,651.27",Mar-21
EREWASH BOROUGH COUNCIL,224149,Street Scene,Repairs and Maintenance,03/02/21,BUCHER MUNICIPAL LTD,307.80,Mar-21
EREWASH BOROUGH COUNCIL,224836,Street Scene,Repairs and Maintenance,09/03/21,EUROTRUCK MIDLANDS LTD,209.35,Mar-21
EREWASH BOROUGH COUNCIL,225010,Household/Residual Waste Collection,Repairs and Maintenance,09/02/21,DENNIS EAGLE LTD,"1,350.15",Mar-21
EREWASH BOROUGH COUNCIL,225100,Household/Residual Waste Collection,Repairs and Maintenance,10/03/21,DENNIS EAGLE LTD,553.57,Mar-21
EREWASH BOROUGH COUNCIL,225717,Street Scene,Road Taxes,02/03/21,LLOYDS BANK,435.00,Mar-21
EREWASH BOROUGH COUNCIL,225042,Household/Residual Waste Collection,MOTs,26/02/21,WILLIAM WEST & SONS (ILKESTON) LIMITED,158.00,Mar-21
EREWASH BOROUGH COUNCIL,224779,Civic Transport,Hire Charges,01/01/21,CRUISE-IN-CONTROL LIMITED,"1,000.00",Mar-21
EREWASH BOROUGH COUNCIL,224189,Street Scene,General Equipment,16/02/21,STEELCRAFT FABRICATIONS,530.00,Mar-21
EREWASH BOROUGH COUNCIL,225236,Green Space,Materials/Consumables,08/03/21,COLSON TRANSPORT LTD,504.00,Mar-21
EREWASH BOROUGH COUNCIL,225717,Community Services,Printing and Stationery,02/03/21,LLOYDS BANK,42.52,Mar-21
EREWASH BOROUGH COUNCIL,224904,ICT Support Services,Office Paper,10/03/21,ANTALIS DOCUMENT SUPPLIES,241.00,Mar-21
EREWASH BOROUGH COUNCIL,225207,Revenues and Benefits,Reference Literature and Publications,17/02/21,CHARTERED INSTITUTE OF PUBLIC FINANCE & ACCOUNTANCY,355.00,Mar-21
EREWASH BOROUGH COUNCIL,225207,Internal Audit,Reference Literature and Publications,17/02/21,CHARTERED INSTITUTE OF PUBLIC FINANCE & ACCOUNTANCY,355.00,Mar-21
EREWASH BOROUGH COUNCIL,224865,Accountancy,Reference Literature and Publications,04/03/21,CHARTERED INSTITUTE OF PUBLIC FINANCE & ACCOUNTANCY,596.70,Mar-21
EREWASH BOROUGH COUNCIL,224206,Community Safety,Analysts Fees,16/02/21,POLICE AND CRIME COMMISSIONER FOR DERBYSHIRE,"5,192.35",Mar-21
EREWASH BOROUGH COUNCIL,224697,Homelessness,Temporary Accommodation,15/05/19,SOUTH DERBYSHIRE DISTRICT COUNCIL,524.00,Mar-21
EREWASH BOROUGH COUNCIL,225359,Homelessness,Temporary Accommodation,01/03/21,NOVOTEL NOTTINGHAM,456.48,Mar-21
EREWASH BOROUGH COUNCIL,225373,Homelessness,Temporary Accommodation,01/03/21,NOVOTEL NOTTINGHAM,"1,200.08",Mar-21
EREWASH BOROUGH COUNCIL,225364,Homelessness,Temporary Accommodation,01/02/21,NOVOTEL NOTTINGHAM,542.20,Mar-21
EREWASH BOROUGH COUNCIL,225288,Homelessness,Temporary Accommodation,28/01/21,NOVOTEL NOTTINGHAM,342.88,Mar-21
EREWASH BOROUGH COUNCIL,225367,Homelessness,Temporary Accommodation,01/02/21,NOVOTEL NOTTINGHAM,315.00,Mar-21
EREWASH BOROUGH COUNCIL,224900,Performance Management,Consultants Fees,28/02/21,Q2 LIMITED,"1,925.00",Mar-21
EREWASH BOROUGH COUNCIL,224727,Revenues and Benefits,Postages,24/02/21,ROYAL MAIL GROUP LTD.,"1,597.40",Mar-21
EREWASH BOROUGH COUNCIL,224722,ICT Support Services,Telephones,17/02/21,MAINTEL EUROPE LIMITED,"4,700.00",Mar-21
EREWASH BOROUGH COUNCIL,224742,ICT Support Services,Telephones,22/02/21,BRITISH TELECOMMUNICATIONS PLC,"1,688.05",Mar-21
EREWASH BOROUGH COUNCIL,225210,Erewash Museum,Conservation,26/03/21,PICTORIAL LTD,220.00,Mar-21
EREWASH BOROUGH COUNCIL,224976,Democratic Representation,Meetings - Refreshments,11/03/21,SNOW ELK PRODUCTIONS,400.00,Mar-21
EREWASH BOROUGH COUNCIL,225021,General Entertainment,Special Events,22/03/21,PICTORIAL LTD,550.00,Mar-21
EREWASH BOROUGH COUNCIL,225175,Arts Development,Special Events,02/03/21,A TOUCH OF HISTORY,725.00,Mar-21
EREWASH BOROUGH COUNCIL,224188,Street Scene,Bins,10/02/21,RIGBY TAYLOR LTD,"1,587.44",Mar-21
EREWASH BOROUGH COUNCIL,224348,Pride In Erewash,Spend to Save,22/02/21,PROTECTIVE WEAR SUPPLIES LTD,308.41,Mar-21
EREWASH BOROUGH COUNCIL,225045,Pride In Erewash,Spend to Save,01/02/21,OLD HALL NURSERIES LTD,"1,188.05",Mar-21
EREWASH BOROUGH COUNCIL,224141,Property and Estates,Alarms Planned Maintenence,03/02/21,TECSERV UK,925.67,Mar-21
EREWASH BOROUGH COUNCIL,224867,Street Scene,Vehicle Sweeper Brushes,08/03/21,TUDOR ENVIRONMENTAL,994.27,Mar-21
EREWASH BOROUGH COUNCIL,224985,Transport Trading Account,Agency Staff,01/03/21,QUESTECH RECRUITMENT LTD,906.50,Mar-21
EREWASH BOROUGH COUNCIL,225138,Transport Trading Account,Agency Staff,19/02/21,TOTAL TRANSPORT COMPLIANCE,"1,500.00",Mar-21
EREWASH BOROUGH COUNCIL,225216,Homelessness,Agency Staff,24/02/21,GREENACRE RECRUITMENT,608.01,Mar-21
EREWASH BOROUGH COUNCIL,224772,Green Space,Agency Staff,22/02/21,EXTRA PERSONNEL LTD,"3,893.38",Mar-21
EREWASH BOROUGH COUNCIL,224773,Green Space,Agency Staff,22/02/21,EXTRA PERSONNEL LTD,"2,216.29",Mar-21
EREWASH BOROUGH COUNCIL,224923,Public Conveniences,Agency Staff,01/03/21,EXTRA PERSONNEL LTD,"3,295.89",Mar-21
EREWASH BOROUGH COUNCIL,225338,Public Conveniences,Agency Staff,08/03/21,EXTRA PERSONNEL LTD,405.30,Mar-21
EREWASH BOROUGH COUNCIL,224404,Street Scene,Agency Staff,15/02/21,EXTRA PERSONNEL LTD,405.30,Mar-21
EREWASH BOROUGH COUNCIL,224403,Street Scene,Agency Staff,15/02/21,EXTRA PERSONNEL LTD,"1,534.18",Mar-21
EREWASH BOROUGH COUNCIL,224301,Homelessness,Agency Staff,03/02/21,GREENACRE RECRUITMENT,391.31,Mar-21
EREWASH BOROUGH COUNCIL,224973,Kerbside Dry Recycling Collection,Agency Staff,03/03/21,THORN BAKER LIMITED,"1,727.62",Mar-21
EREWASH BOROUGH COUNCIL,224998,Household/Residual Waste Collection,Agency Staff,25/01/21,EXTRA PERSONNEL LTD,"3,076.31",Mar-21
EREWASH BOROUGH COUNCIL,224975,Household/Residual Waste Collection,Agency Staff,09/02/21,THORN BAKER LIMITED,"3,819.80",Mar-21
EREWASH BOROUGH COUNCIL,224994,Household/Residual Waste Collection,Agency Staff,13/02/21,WORKCHAIN LTD,"1,044.73",Mar-21
EREWASH BOROUGH COUNCIL,224995,Household/Residual Waste Collection,Agency Staff,20/02/21,WORKCHAIN LTD,"1,044.73",Mar-21
EREWASH BOROUGH COUNCIL,225133,Household/Residual Waste Collection,Agency Staff,15/02/21,EXTRA PERSONNEL LTD,"3,361.36",Mar-21
EREWASH BOROUGH COUNCIL,225350,Council Tax Support Administration,Salaries,04/01/21,REDACTED PERSONAL DATA,"1,899.64",Mar-21
EREWASH BOROUGH COUNCIL,224323,Property and Estates,Repairs and Maintenance,16/02/21,PEEL ELECTRICAL LTD,686.21,Mar-21
EREWASH BOROUGH COUNCIL,224389,Civic Accommodation - Long Eaton,Electricity,18/02/21,TOTAL GAS & POWER LTD,"3,532.52",Mar-21
EREWASH BOROUGH COUNCIL,224390,Cotmanhay Pavilion,Electricity,18/02/21,TOTAL GAS & POWER LTD,67.14,Mar-21
EREWASH BOROUGH COUNCIL,224129,Bridge House - Long Eaton,Gas,16/02/21,TOTAL GAS & POWER LTD,257.56,Mar-21
EREWASH BOROUGH COUNCIL,224129,Sandiacre Friesland Sports Centre,Gas,16/02/21,TOTAL GAS & POWER LTD,403.37,Mar-21
EREWASH BOROUGH COUNCIL,224409,Balance Sheet,ICT Works,25/02/21,CAPITA,"2,090.00",Mar-21
EREWASH BOROUGH COUNCIL,224377,Balance Sheet,ICT Works,21/02/21,MACILDOWIE RECRUITMENT EXPERTISE,"1,220.51",Mar-21
EREWASH BOROUGH COUNCIL,225089,Balance Sheet,Grant Payments,15/02/21,DERBYSHIRE COUNTY COUNCIL...,"2,681.25",Mar-21
EREWASH BOROUGH COUNCIL,224361,Balance Sheet,COVID 19 - Additional Restrictions Grant,01/03/21,SAMS BODYSHOP LTD,"3,500.00",Mar-21
EREWASH BOROUGH COUNCIL,224365,Balance Sheet,COVID 19 - Additional Restrictions Grant,01/03/21,DRAYCOTT BREWING COMPANY LTD,"1,500.00",Mar-21
EREWASH BOROUGH COUNCIL,224587,Balance Sheet,COVID 19 - Additional Restrictions Grant,02/03/21,D HARTFIELD DEVELOPMENTS LTD,"1,571.00",Mar-21
EREWASH BOROUGH COUNCIL,224592,Balance Sheet,COVID 19 - Additional Restrictions Grant,02/03/21,TECHNICAL TEACH ACADEMY,"1,571.00",Mar-21
EREWASH BOROUGH COUNCIL,224518,Balance Sheet,COVID 19 - Additional Restrictions Grant,02/03/21,TAYLORMADE JOINERY CONSULTANTS,786.00,Mar-21
EREWASH BOROUGH COUNCIL,224524,Balance Sheet,COVID 19 - Additional Restrictions Grant,02/03/21,ODD EXHIBITIONS LTD,"1,571.00",Mar-21
EREWASH BOROUGH COUNCIL,224527,Balance Sheet,COVID 19 - Additional Restrictions Grant,02/03/21,CRUISE-IN-CONTROL LIMITED,"1,571.00",Mar-21
EREWASH BOROUGH COUNCIL,224530,Balance Sheet,COVID 19 - Additional Restrictions Grant,02/03/21,HH AND SPOOKY NIGHTS LTD,"1,571.00",Mar-21
EREWASH BOROUGH COUNCIL,224544,Balance Sheet,COVID 19 - Additional Restrictions Grant,02/03/21,LIFESTYLE HOME SOLUTIONS LIMITED,"2,357.00",Mar-21
EREWASH BOROUGH COUNCIL,224555,Balance Sheet,COVID 19 - Additional Restrictions Grant,02/03/21,EZONE MOBILE & LAPTOP REPAIRS,"1,571.00",Mar-21
EREWASH BOROUGH COUNCIL,224426,Balance Sheet,COVID 19 - Additional Restrictions Grant,02/03/21,H PELL @ BROWNS HAIRDRESSING,"1,571.00",Mar-21
EREWASH BOROUGH COUNCIL,224430,Balance Sheet,COVID 19 - Additional Restrictions Grant,02/03/21,DANCING FEET SCHOOL OF DANCE,"1,571.00",Mar-21
EREWASH BOROUGH COUNCIL,224438,Balance Sheet,COVID 19 - Additional Restrictions Grant,02/03/21,REDACTED PERSONAL DATA,"1,571.00",Mar-21
EREWASH BOROUGH COUNCIL,224451,Balance Sheet,COVID 19 - Additional Restrictions Grant,02/03/21,F & M STEED LTD,"2,357.00",Mar-21
EREWASH BOROUGH COUNCIL,224452,Balance Sheet,COVID 19 - Additional Restrictions Grant,02/03/21,GCWELLBEING LTD,"1,571.00",Mar-21
EREWASH BOROUGH COUNCIL,224460,Balance Sheet,COVID 19 - Additional Restrictions Grant,02/03/21,MIDLAND CARAVANS LIMITED,"2,357.00",Mar-21
EREWASH BOROUGH COUNCIL,224493,Balance Sheet,COVID 19 - Additional Restrictions Grant,02/03/21,ILKESTON RUTLAND CRICKET CLUB,"1,571.00",Mar-21
EREWASH BOROUGH COUNCIL,224495,Balance Sheet,COVID 19 - Additional Restrictions Grant,02/03/21,EXPRESS DRY CLEANING,"1,571.00",Mar-21
EREWASH BOROUGH COUNCIL,224508,Balance Sheet,COVID 19 - Additional Restrictions Grant,02/03/21,ADVANCED VENDING SERVICES LTD,"1,571.00",Mar-21
EREWASH BOROUGH COUNCIL,224561,Balance Sheet,COVID 19 - Additional Restrictions Grant,02/03/21,ANGUS TREE CARE,"1,571.00",Mar-21
EREWASH BOROUGH COUNCIL,224581,Balance Sheet,COVID 19 - Additional Restrictions Grant,02/03/21,PRIORITY LIFT SERVICES LTD,"1,571.00",Mar-21
EREWASH BOROUGH COUNCIL,224625,Balance Sheet,COVID 19 - Additional Restrictions Grant,02/03/21,MODERN MOTORCYCLES,"1,571.00",Mar-21
EREWASH BOROUGH COUNCIL,224626,Balance Sheet,COVID 19 - Additional Restrictions Grant,02/03/21,STARK INCORPORATED LIMITED,"1,571.00",Mar-21
EREWASH BOROUGH COUNCIL,224637,Balance Sheet,COVID 19 - Additional Restrictions Grant,02/03/21,ADVANCED AUTO RECOVERY,"2,357.00",Mar-21
EREWASH BOROUGH COUNCIL,224681,Balance Sheet,COVID 19 - Additional Restrictions Grant,03/03/21,REDACTED PERSONAL DATA,"1,571.00",Mar-21
EREWASH BOROUGH COUNCIL,224813,Balance Sheet,COVID 19 - Additional Restrictions Grant,09/03/21,REDACTED PERSONAL DATA,"3,071.00",Mar-21
EREWASH BOROUGH COUNCIL,224809,Balance Sheet,COVID 19 - Additional Restrictions Grant,09/03/21,REDACTED PERSONAL DATA,"5,071.00",Mar-21
EREWASH BOROUGH COUNCIL,224807,Balance Sheet,COVID 19 - Additional Restrictions Grant,09/03/21,REDACTED PERSONAL DATA,"5,071.00",Mar-21
EREWASH BOROUGH COUNCIL,224810,Balance Sheet,COVID 19 - Additional Restrictions Grant,09/03/21,IN YOUR CORNER LIMITED,"5,071.00",Mar-21
EREWASH BOROUGH COUNCIL,224948,Balance Sheet,COVID 19 - Additional Restrictions Grant,16/03/21,DHIENDSA TRANSPORT,"3,071.00",Mar-21
EREWASH BOROUGH COUNCIL,225300,Balance Sheet,COVID 19 - Additional Restrictions Grant,30/03/21,HUNNY BEAUTY,"3,071.00",Mar-21
EREWASH BOROUGH COUNCIL,225298,Balance Sheet,COVID 19 - Additional Restrictions Grant,30/03/21,KELOMAY HAIR STYLING,"1,536.00",Mar-21
EREWASH BOROUGH COUNCIL,225276,Kerbside Dry Recycling Collection,Vehicle Tracking Repairs and Maintenance,01/02/21,MASTERNAUT (UK) LTD,240.55,Mar-21
EREWASH BOROUGH COUNCIL,225022,"Police, Crime Commissioner Community Safety Grant",Project Grants,11/11/20,POLICE AND CRIME COMMISSIONER FOR DERBYSHIRE,"2,000.00",Mar-21
EREWASH BOROUGH COUNCIL,224898,Economic Development,Project Grants,05/03/21,DERBYSHIRE COUNTY COUNCIL...,"38,895.60",Mar-21
EREWASH BOROUGH COUNCIL,224882,Pedestrian Zones - Ilkeston and Long Eaton,Reactive Maintenance,10/03/21,ALPHA DRAIN SERVICES,"2,347.00",Mar-21
EREWASH BOROUGH COUNCIL,225130,Balance Sheet,PCC - Election,23/03/21,SCI PRINT LTD,438.43,Mar-21
EREWASH BOROUGH COUNCIL,224153,Green Space,Repairs and Maintenance,08/02/21,RUSSELLS (KIRBYMOORSIDE) LIMITED,"2,251.97",Mar-21
EREWASH BOROUGH COUNCIL,225039,Household/Residual Waste Collection,Repairs and Maintenance,18/03/21,VEHICLE WEIGHING SOLUTIONS,477.63,Mar-21
EREWASH BOROUGH COUNCIL,225331,Household/Residual Waste Collection,Repairs and Maintenance,22/03/21,DENNIS EAGLE LTD,553.57,Mar-21
EREWASH BOROUGH COUNCIL,224849,Arts Development,Disinfectants/Chemicals,10/03/21,REDACTED PERSONAL DATA,800.00,Mar-21
EREWASH BOROUGH COUNCIL,224206,Community Safety,General Equipment,16/02/21,POLICE AND CRIME COMMISSIONER FOR DERBYSHIRE,300.04,Mar-21
EREWASH BOROUGH COUNCIL,225233,Community Safety,General Equipment,24/03/21,JENSON PRESS PRINTERS,235.00,Mar-21
EREWASH BOROUGH COUNCIL,225023,Democratic Representation,Maintenance of Equipment,15/02/21,CIVICA UK LIMITED,"10,601.30",Mar-21
EREWASH BOROUGH COUNCIL,224801,Planning Policy,Maintenance of Equipment,12/02/21,NOTTINGHAM CITY COUNCIL..,"1,600.00",Mar-21
EREWASH BOROUGH COUNCIL,224343,Green Space,Materials/Consumables,24/02/21,TUDOR ENVIRONMENTAL,68.60,Mar-21
EREWASH BOROUGH COUNCIL,224762,Green Space,Materials/Consumables,26/02/21,SLINTER MINING COMPANY,240.00,Mar-21
EREWASH BOROUGH COUNCIL,224775,Green Space,Materials/Consumables,26/02/21,EAST RIDING HORTICULTURE LTD,"1,286.57",Mar-21
EREWASH BOROUGH COUNCIL,224768,Pride In Erewash,Materials/Consumables,04/03/21,DART LTD,45.00,Mar-21
EREWASH BOROUGH COUNCIL,225207,Accountancy,Reference Literature and Publications,17/02/21,CHARTERED INSTITUTE OF PUBLIC FINANCE & ACCOUNTANCY,355.00,Mar-21
EREWASH BOROUGH COUNCIL,225374,Homelessness,Temporary Accommodation,01/02/21,NOVOTEL NOTTINGHAM,"3,843.12",Mar-21
EREWASH BOROUGH COUNCIL,225361,Homelessness,Temporary Accommodation,05/02/21,NOVOTEL NOTTINGHAM,315.00,Mar-21
EREWASH BOROUGH COUNCIL,225058,Community Services,Computer Software,15/02/21,CIVICA UK LIMITED,"5,971.78",Mar-21
EREWASH BOROUGH COUNCIL,225269,Revenues and Benefits,Postages,23/03/21,DSI BILLING SERVICES LTD,"16,912.60",Mar-21
EREWASH BOROUGH COUNCIL,224879,Registration of Electors,Postages,26/02/21,ROYAL MAIL GROUP LTD.,"1,043.64",Mar-21
EREWASH BOROUGH COUNCIL,224170,Revenues and Benefits,Software Licences,16/02/21,CIVICA UK LIMITED,"2,750.00",Mar-21
EREWASH BOROUGH COUNCIL,224316,Revenues and Benefits,Software Licences,23/02/21,CIVICA UK LIMITED,"2,150.00",Mar-21
EREWASH BOROUGH COUNCIL,225058,Planning Policy,Software Licences,15/02/21,CIVICA UK LIMITED,357.59,Mar-21
EREWASH BOROUGH COUNCIL,225156,Communications,General Publicity and Promotion,22/03/21,PICTORIAL LTD,600.00,Mar-21
EREWASH BOROUGH COUNCIL,224690,Arts Development,Special Events,02/03/21,A TOUCH OF HISTORY,"1,275.00",Mar-21
EREWASH BOROUGH COUNCIL,225285,Arts Development,Special Events,29/03/21,REDACTED PERSONAL DATA,250.00,Mar-21
EREWASH BOROUGH COUNCIL,224402,Leisure Contract,Contracted Services,22/02/21,PARKWOOD LEISURE LTD,"95,853.00",Mar-21
EREWASH BOROUGH COUNCIL,225305,Erewash Museum,Advertising,29/03/21,PITBITZ LIMITED T/A GAZEBOSHOP,236.66,Mar-21
EREWASH BOROUGH COUNCIL,225006,Kerbside Dry Recycling Collection,Bins,04/12/20,MGB PLASTICS LTD,"3,883.20",Mar-21
EREWASH BOROUGH COUNCIL,225007,Kerbside Dry Recycling Collection,Bins,17/12/20,MGB PLASTICS LTD,100.00,Mar-21
EREWASH BOROUGH COUNCIL,225007,Household/Residual Waste Collection,Bins,17/12/20,MGB PLASTICS LTD,150.00,Mar-21
EREWASH BOROUGH COUNCIL,225215,Household/Residual Waste Collection,Bin Liners,11/02/21,IMPERIAL POLYTHENE,931.54,Mar-21
EREWASH BOROUGH COUNCIL,224854,Property and Estates,Alarms Reactive Maintenance,09/03/21,TECSERV UK,288.00,Mar-21
EREWASH BOROUGH COUNCIL,225217,Homelessness,Agency Staff,03/03/21,GREENACRE RECRUITMENT,447.47,Mar-21
EREWASH BOROUGH COUNCIL,225132,Green Space,Agency Staff,08/02/21,EXTRA PERSONNEL LTD,509.86,Mar-21
EREWASH BOROUGH COUNCIL,224773,Public Conveniences,Agency Staff,22/02/21,EXTRA PERSONNEL LTD,937.28,Mar-21
EREWASH BOROUGH COUNCIL,223785,Street Scene,Agency Staff,12/02/21,WICKSTEED LEISURE LTD,634.75,Mar-21
EREWASH BOROUGH COUNCIL,224971,Kerbside Dry Recycling Collection,Agency Staff,17/02/21,THORN BAKER LIMITED,"1,461.50",Mar-21
EREWASH BOROUGH COUNCIL,224972,Kerbside Dry Recycling Collection,Agency Staff,24/02/21,THORN BAKER LIMITED,"1,836.12",Mar-21
EREWASH BOROUGH COUNCIL,224993,Kerbside Dry Recycling Collection,Agency Staff,11/03/21,QUALITY SERVICE RECRUITMENT LTD,222.00,Mar-21
EREWASH BOROUGH COUNCIL,224994,Kerbside Dry Recycling Collection,Agency Staff,13/02/21,WORKCHAIN LTD,696.49,Mar-21
EREWASH BOROUGH COUNCIL,224995,Kerbside Dry Recycling Collection,Agency Staff,20/02/21,WORKCHAIN LTD,696.49,Mar-21
EREWASH BOROUGH COUNCIL,225131,Kerbside Dry Recycling Collection,Agency Staff,01/02/21,EXTRA PERSONNEL LTD,"2,214.62",Mar-21
EREWASH BOROUGH COUNCIL,224996,Household/Residual Waste Collection,Agency Staff,27/02/21,WORKCHAIN LTD,"1,044.73",Mar-21
EREWASH BOROUGH COUNCIL,224970,Household/Residual Waste Collection,Agency Staff,02/02/21,THORN BAKER LIMITED,"1,998.06",Mar-21
EREWASH BOROUGH COUNCIL,224973,Household/Residual Waste Collection,Agency Staff,03/03/21,THORN BAKER LIMITED,"1,727.63",Mar-21
EREWASH BOROUGH COUNCIL,224992,Household/Residual Waste Collection,Agency Staff,04/03/21,QUALITY SERVICE RECRUITMENT LTD,590.94,Mar-21
EREWASH BOROUGH COUNCIL,225131,Household/Residual Waste Collection,Agency Staff,01/02/21,EXTRA PERSONNEL LTD,"3,321.92",Mar-21
EREWASH BOROUGH COUNCIL,225350,Payments,Salaries,04/01/21,REDACTED PERSONAL DATA,474.91,Mar-21
EREWASH BOROUGH COUNCIL,224770,Personnel,Recruitment Expenses,04/03/21,DERBYSHIRE COUNTY COUNCIL...,336.00,Mar-21
EREWASH BOROUGH COUNCIL,224737,Property and Estates,Planned Preventative Maintenance,05/03/21,ALPHA PARTNER (MIDLANDS)  LIMITED,"1,490.77",Mar-21
EREWASH BOROUGH COUNCIL,225061,Property and Estates,Planned Preventative Maintenance,11/03/21,ALPHA PARTNER (MIDLANDS)  LIMITED,"1,400.00",Mar-21
EREWASH BOROUGH COUNCIL,223719,Property and Estates,Repairs and Maintenance,05/02/21,GDUK DOOR SOLUTIONS LIMITED,648.00,Mar-21
EREWASH BOROUGH COUNCIL,224390,Civic Accommodation - Ilkeston,Electricity,18/02/21,TOTAL GAS & POWER LTD,519.54,Mar-21
EREWASH BOROUGH COUNCIL,224390,CCTV - Ilkeston and Long Eaton,Electricity,18/02/21,TOTAL GAS & POWER LTD,359.51,Mar-21
EREWASH BOROUGH COUNCIL,225054,Toll Bar House - Ilkeston,Metered Water,03/03/21,WATER PLUS,"4,153.54",Mar-21
EREWASH BOROUGH COUNCIL,224799,Balance Sheet,Vehicles and Other Equipment,10/02/21,INSIGHT DIRECT (UK) LTD,"34,307.00",Mar-21
EREWASH BOROUGH COUNCIL,224714,Balance Sheet,Fuel Store,23/02/21,TENNANTS DISTRIBUTION LTD,340.00,Mar-21
EREWASH BOROUGH COUNCIL,224588,Balance Sheet,COVID 19 - Additional Restrictions Grant,02/03/21,FAIRFIELD BOARDING CATTERY,"1,571.00",Mar-21
EREWASH BOROUGH COUNCIL,224591,Balance Sheet,COVID 19 - Additional Restrictions Grant,02/03/21,BEV SOUTHERN-WARBURTON COACHING & PERSONAL DEVELOPMENT,"1,571.00",Mar-21
EREWASH BOROUGH COUNCIL,224594,Balance Sheet,COVID 19 - Additional Restrictions Grant,02/03/21,SHINE HAIR & BEAUTY,"1,571.00",Mar-21
EREWASH BOROUGH COUNCIL,224599,Balance Sheet,COVID 19 - Additional Restrictions Grant,02/03/21,WINDMILL BUILDERS.,"1,571.00",Mar-21
EREWASH BOROUGH COUNCIL,224534,Balance Sheet,COVID 19 - Additional Restrictions Grant,02/03/21,SAM@HEADROOM,"1,571.00",Mar-21
EREWASH BOROUGH COUNCIL,224545,Balance Sheet,COVID 19 - Additional Restrictions Grant,02/03/21,WAY AHEAD,"1,571.00",Mar-21
EREWASH BOROUGH COUNCIL,224547,Balance Sheet,COVID 19 - Additional Restrictions Grant,02/03/21,THE BEAUTY RETREAT,"1,571.00",Mar-21
EREWASH BOROUGH COUNCIL,224553,Balance Sheet,COVID 19 - Additional Restrictions Grant,02/03/21,TESCA,786.00,Mar-21
EREWASH BOROUGH COUNCIL,224557,Balance Sheet,COVID 19 - Additional Restrictions Grant,02/03/21,MUHAMMAD IBRAR,"1,571.00",Mar-21
EREWASH BOROUGH COUNCIL,224422,Balance Sheet,COVID 19 - Additional Restrictions Grant,02/03/21,KC AESTHETICS CLINIC,"1,571.00",Mar-21
EREWASH BOROUGH COUNCIL,224447,Balance Sheet,COVID 19 - Additional Restrictions Grant,02/03/21,LN BROWN T/A INSPIRATTI,"1,571.00",Mar-21
EREWASH BOROUGH COUNCIL,224462,Balance Sheet,COVID 19 - Additional Restrictions Grant,02/03/21,SHINE HAIR BY DAYNA,"1,571.00",Mar-21
EREWASH BOROUGH COUNCIL,224465,Balance Sheet,COVID 19 - Additional Restrictions Grant,02/03/21,JAYSONS OPTICAL SERVICES,"1,571.00",Mar-21
EREWASH BOROUGH COUNCIL,224483,Balance Sheet,COVID 19 - Additional Restrictions Grant,02/03/21,GINFLIGHT COMPANY LIMITED,"2,357.00",Mar-21
EREWASH BOROUGH COUNCIL,224487,Balance Sheet,COVID 19 - Additional Restrictions Grant,02/03/21,CKHECKMATE DRIVER TRAINING,"1,571.00",Mar-21
EREWASH BOROUGH COUNCIL,224489,Balance Sheet,COVID 19 - Additional Restrictions Grant,02/03/21,MILLIES THE COFFEE SHOP,"1,571.00",Mar-21
EREWASH BOROUGH COUNCIL,224494,Balance Sheet,COVID 19 - Additional Restrictions Grant,02/03/21,REDACTED PERSONAL DATA,"1,571.00",Mar-21
EREWASH BOROUGH COUNCIL,224499,Balance Sheet,COVID 19 - Additional Restrictions Grant,02/03/21,HAILSNAILS,"1,571.00",Mar-21
EREWASH BOROUGH COUNCIL,224567,Balance Sheet,COVID 19 - Additional Restrictions Grant,02/03/21,REDACTED PERSONAL DATA,"1,571.00",Mar-21
EREWASH BOROUGH COUNCIL,224575,Balance Sheet,COVID 19 - Additional Restrictions Grant,02/03/21,A & K ENTERTAINMENTS,"1,571.00",Mar-21
EREWASH BOROUGH COUNCIL,224580,Balance Sheet,COVID 19 - Additional Restrictions Grant,02/03/21,PRECISION FLOW SCREED LTD,"2,357.00",Mar-21
EREWASH BOROUGH COUNCIL,224663,Balance Sheet,COVID 19 - Additional Restrictions Grant,03/03/21,PURPLE GIRAFFE JOINERY & INSTALLATIONS LTD,"1,571.00",Mar-21
EREWASH BOROUGH COUNCIL,224667,Balance Sheet,COVID 19 - Additional Restrictions Grant,03/03/21,REDACTED PERSONAL DATA,"1,571.00",Mar-21
EREWASH BOROUGH COUNCIL,224671,Balance Sheet,COVID 19 - Additional Restrictions Grant,03/03/21,REDACTED PERSONAL DATA,786.00,Mar-21
EREWASH BOROUGH COUNCIL,224659,Balance Sheet,COVID 19 - Additional Restrictions Grant,03/03/21,SINGSONGSTORIES,"1,571.00",Mar-21
EREWASH BOROUGH COUNCIL,224612,Balance Sheet,COVID 19 - Additional Restrictions Grant,02/03/21,HORNSTONE ENGLAND,"1,571.00",Mar-21
EREWASH BOROUGH COUNCIL,224622,Balance Sheet,COVID 19 - Additional Restrictions Grant,02/03/21,ITS INTERN TRANSPORT SYSTEM (UK) LTD,"1,571.00",Mar-21
EREWASH BOROUGH COUNCIL,224623,Balance Sheet,COVID 19 - Additional Restrictions Grant,02/03/21,CHERYLS HABERDASHERY,"1,571.00",Mar-21
EREWASH BOROUGH COUNCIL,224627,Balance Sheet,COVID 19 - Additional Restrictions Grant,02/03/21,REDACTED PERSONAL DATA,"1,571.00",Mar-21
EREWASH BOROUGH COUNCIL,224632,Balance Sheet,COVID 19 - Additional Restrictions Grant,02/03/21,REDACTED PERSONAL DATA,"1,571.00",Mar-21
EREWASH BOROUGH COUNCIL,224635,Balance Sheet,COVID 19 - Additional Restrictions Grant,02/03/21,SHED 2 STUDIOS,"1,571.00",Mar-21
EREWASH BOROUGH COUNCIL,224642,Balance Sheet,COVID 19 - Additional Restrictions Grant,03/03/21,NIKKI'S BEAUTY,"1,571.00",Mar-21
EREWASH BOROUGH COUNCIL,224647,Balance Sheet,COVID 19 - Additional Restrictions Grant,03/03/21,PETER'S DELI,"1,571.00",Mar-21
EREWASH BOROUGH COUNCIL,224650,Balance Sheet,COVID 19 - Additional Restrictions Grant,03/03/21,BESPOKE WEDDINGS (KIRSTY MORAN),"1,571.00",Mar-21
EREWASH BOROUGH COUNCIL,224680,Balance Sheet,COVID 19 - Additional Restrictions Grant,03/03/21,ILKESTON TYRE SERVICES,"1,571.00",Mar-21
EREWASH BOROUGH COUNCIL,224816,Balance Sheet,COVID 19 - Additional Restrictions Grant,09/03/21,CHECKMATE SOM,"3,071.00",Mar-21
EREWASH BOROUGH COUNCIL,224814,Balance Sheet,COVID 19 - Additional Restrictions Grant,09/03/21,USA CHICKEN EXPRESS,"3,071.00",Mar-21
EREWASH BOROUGH COUNCIL,224817,Balance Sheet,COVID 19 - Additional Restrictions Grant,09/03/21,MOJO CYCLES,"3,071.00",Mar-21
EREWASH BOROUGH COUNCIL,224820,Balance Sheet,COVID 19 - Additional Restrictions Grant,09/03/21,SHARAZ AHMAD,"3,071.00",Mar-21
EREWASH BOROUGH COUNCIL,224822,Balance Sheet,COVID 19 - Additional Restrictions Grant,09/03/21,G L D AESTHETICS,"3,071.00",Mar-21
EREWASH BOROUGH COUNCIL,224827,Balance Sheet,COVID 19 - Additional Restrictions Grant,09/03/21,ALAN MCGOWAN ARCHITECTS LTD,"3,071.00",Mar-21
EREWASH BOROUGH COUNCIL,224951,Balance Sheet,COVID 19 - Additional Restrictions Grant,16/03/21,REDACTED PERSONAL DATA,"3,071.00",Mar-21
EREWASH BOROUGH COUNCIL,224953,Balance Sheet,COVID 19 - Additional Restrictions Grant,16/03/21,VEE DUBZ CONERSTIONS LTD,"3,071.00",Mar-21
EREWASH BOROUGH COUNCIL,224937,Balance Sheet,COVID 19 - Additional Restrictions Grant,16/03/21,CAPTAIN KIRK LIMITED,"3,071.00",Mar-21
EREWASH BOROUGH COUNCIL,224943,Balance Sheet,COVID 19 - Additional Restrictions Grant,16/03/21,SERENITY HOLISTIC THERAPIES,"1,536.00",Mar-21
EREWASH BOROUGH COUNCIL,224950,Balance Sheet,COVID 19 - Additional Restrictions Grant,16/03/21,KOOL DRIVER TRAINING,"3,071.00",Mar-21
EREWASH BOROUGH COUNCIL,225065,Balance Sheet,COVID 19 - Additional Restrictions Grant,23/03/21,G AND V CARS LTD,"5,071.00",Mar-21
EREWASH BOROUGH COUNCIL,225068,Balance Sheet,COVID 19 - Additional Restrictions Grant,23/03/21,HOOPERS (DERBY) LTD,"3,071.00",Mar-21
EREWASH BOROUGH COUNCIL,224419,Urban Renewal,Licence - Housing Multiple Occupancy,02/03/21,AUSKOP LTD,793.00,Mar-21
EREWASH BOROUGH COUNCIL,225276,Ilkeston Admin and Courier,Vehicle Tracking Repairs and Maintenance,01/02/21,MASTERNAUT (UK) LTD,44.85,Mar-21
EREWASH BOROUGH COUNCIL,224694,"Police, Crime Commissioner Community Safety Grant",Project Grants,02/03/21,THE BLUE LAMP TRUST,"1,916.67",Mar-21
EREWASH BOROUGH COUNCIL,224924,"Police, Crime Commissioner Community Safety Grant",Project Grants,25/02/21,NORMANTON SCREENPRINT,"1,990.00",Mar-21
EREWASH BOROUGH COUNCIL,224332,Pedestrian Zones - Ilkeston and Long Eaton,Reactive Maintenance,05/02/21,N B CONSTRUCTION,390.00,Mar-21
EREWASH BOROUGH COUNCIL,225158,Pedestrian Zones - Ilkeston and Long Eaton,Reactive Maintenance,08/03/21,N B CONSTRUCTION,296.45,Mar-21
EREWASH BOROUGH COUNCIL,224857,Property and Estates,PPM Mechanical and Equipment,08/03/21,PEEL ELECTRICAL LTD,240.60,Mar-21
EREWASH BOROUGH COUNCIL,224744,Property and Estates,PPM Mechanical and Equipment,04/03/21,MDB PLUMBING (NOTTM) LTD,681.28,Mar-21
EREWASH BOROUGH COUNCIL,224390,Christmas Lights,PPM Mechanical and Equipment,18/02/21,TOTAL GAS & POWER LTD,127.82,Mar-21
EREWASH BOROUGH COUNCIL,224410,Balance Sheet,PCC - Election,01/03/21,BANNER GROUP LIMITED,679.18,Mar-21
EREWASH BOROUGH COUNCIL,224839,Street Scene,Repairs and Maintenance,08/03/21,SCARAB SWEEPERS LTD,282.51,Mar-21
EREWASH BOROUGH COUNCIL,223797,Household/Residual Waste Collection,Repairs and Maintenance,03/02/21,TERBERG MATEC UK,558.94,Mar-21
EREWASH BOROUGH COUNCIL,225004,Kerbside Dry Recycling Collection,Repairs and Maintenance,17/02/21,DENNIS EAGLE LTD,242.29,Mar-21
EREWASH BOROUGH COUNCIL,225014,Kerbside Dry Recycling Collection,Repairs and Maintenance,26/02/21,BURROWS RECOVERY,440.00,Mar-21
EREWASH BOROUGH COUNCIL,225111,Kerbside Dry Recycling Collection,Repairs and Maintenance,01/02/21,DENNIS EAGLE LTD,"1,549.43",Mar-21
EREWASH BOROUGH COUNCIL,224967,Household/Residual Waste Collection,Road Taxes,02/02/21,LLOYDS BANK,167.50,Mar-21
EREWASH BOROUGH COUNCIL,225012,Kerbside Dry Recycling Collection,MOTs,29/01/21,WILLIAM WEST & SONS (ILKESTON) LIMITED,158.00,Mar-21
EREWASH BOROUGH COUNCIL,224318,Street Scene,General Equipment,19/02/21,WICKSTEED LEISURE LTD,243.84,Mar-21
EREWASH BOROUGH COUNCIL,225353,Reprographics,Equipment Leasing Charge,23/03/21,ISSUU,348.00,Mar-21
EREWASH BOROUGH COUNCIL,225274,Erewash Museum,Goods for Resale,25/02/21,TOBAR LIMITED,755.67,Mar-21
EREWASH BOROUGH COUNCIL,224349,Green Space,Materials/Consumables,16/02/21,STEELCRAFT FABRICATIONS,600.00,Mar-21
EREWASH BOROUGH COUNCIL,224967,Neighbourhood Wardens,Uniforms,02/02/21,LLOYDS BANK,50.82,Mar-21
EREWASH BOROUGH COUNCIL,224845,External Audit,Audit Fees,05/03/21,CABINET OFFICE,"2,450.00",Mar-21
EREWASH BOROUGH COUNCIL,225354,Homelessness,Temporary Accommodation,29/01/21,NOVOTEL NOTTINGHAM,756.50,Mar-21
EREWASH BOROUGH COUNCIL,225362,Homelessness,Temporary Accommodation,01/03/21,NOVOTEL NOTTINGHAM,"1,200.08",Mar-21
EREWASH BOROUGH COUNCIL,225365,Homelessness,Temporary Accommodation,01/03/21,NOVOTEL NOTTINGHAM,"1,200.08",Mar-21
EREWASH BOROUGH COUNCIL,225374,Homelessness,Temporary Accommodation,01/02/21,NOVOTEL NOTTINGHAM,41.67,Mar-21
EREWASH BOROUGH COUNCIL,224956,Revenues and Benefits,Postages,10/03/21,ROYAL MAIL GROUP LTD.,"1,458.56",Mar-21
EREWASH BOROUGH COUNCIL,225153,Revenues and Benefits,Postages,28/02/21,TELSOLUTIONS LTD,676.38,Mar-21
EREWASH BOROUGH COUNCIL,225018,Revenues and Benefits,Software Licences,15/02/21,CIVICA UK LIMITED,"73,481.01",Mar-21
EREWASH BOROUGH COUNCIL,225119,Payments,Commission,24/03/21,UNISON,-6.91,Mar-21
EREWASH BOROUGH COUNCIL,223695,Trees Hedges and Local Nature Reserves,Contracted Services,08/02/21,RA INFORMATION SYSTEMS,"1,575.00",Mar-21
EREWASH BOROUGH COUNCIL,225052,CCTV - Ilkeston and Long Eaton,Contracted Services,09/02/21,SYNECTICS SECURITY LIMITED,"7,920.50",Mar-21
EREWASH BOROUGH COUNCIL,224880,Occupational Health and Welfare,Occupational Health Service,01/03/21,BUPA HEALTH CLINICS,406.44,Mar-21
EREWASH BOROUGH COUNCIL,225172,Kerbside Dry Recycling Collection,Bins,05/02/21,MGB PLASTICS LTD,479.90,Mar-21
EREWASH BOROUGH COUNCIL,225005,Household/Residual Waste Collection,Bins,03/12/20,MGB PLASTICS LTD,360.00,Mar-21
EREWASH BOROUGH COUNCIL,225006,Household/Residual Waste Collection,Bins,04/12/20,MGB PLASTICS LTD,"3,792.00",Mar-21
EREWASH BOROUGH COUNCIL,225169,Homelessness Prevention,Spend to Save,17/03/21,SW PROPERTY LTD,516.00,Mar-21
EREWASH BOROUGH COUNCIL,224725,Property and Estates,Alarms Reactive Maintenance,25/02/21,TECSERV UK,499.95,Mar-21
EREWASH BOROUGH COUNCIL,224862,Personnel,Apprenticeship Levy,15/03/21,HMRC CUMBERNAULD,"-1,250.00",Mar-21
EREWASH BOROUGH COUNCIL,225337,Public Conveniences,Agency Staff,15/03/21,EXTRA PERSONNEL LTD,405.30,Mar-21
EREWASH BOROUGH COUNCIL,224405,Street Scene,Agency Staff,15/02/21,EXTRA PERSONNEL LTD,781.89,Mar-21
EREWASH BOROUGH COUNCIL,224300,Homelessness,Agency Staff,10/02/21,GREENACRE RECRUITMENT,416.89,Mar-21
EREWASH BOROUGH COUNCIL,224998,Kerbside Dry Recycling Collection,Agency Staff,25/01/21,EXTRA PERSONNEL LTD,"2,050.88",Mar-21
EREWASH BOROUGH COUNCIL,224991,Kerbside Dry Recycling Collection,Agency Staff,25/02/21,QUALITY SERVICE RECRUITMENT LTD,434.08,Mar-21
EREWASH BOROUGH COUNCIL,224971,Household/Residual Waste Collection,Agency Staff,17/02/21,THORN BAKER LIMITED,"1,461.50",Mar-21
EREWASH BOROUGH COUNCIL,224974,Household/Residual Waste Collection,Agency Staff,09/03/21,THORN BAKER LIMITED,"1,860.18",Mar-21
EREWASH BOROUGH COUNCIL,224989,Household/Residual Waste Collection,Agency Staff,11/02/21,QUALITY SERVICE RECRUITMENT LTD,651.13,Mar-21
EREWASH BOROUGH COUNCIL,224991,Household/Residual Waste Collection,Agency Staff,25/02/21,QUALITY SERVICE RECRUITMENT LTD,651.13,Mar-21
EREWASH BOROUGH COUNCIL,224795,Revenues and Benefits,Courses and Seminars,04/03/21,CIVICA UK LIMITED,600.00,Mar-21
EREWASH BOROUGH COUNCIL,224339,Green Space,Training,13/01/21,IRRV,250.00,Mar-21
EREWASH BOROUGH COUNCIL,225158,Car Parking,Planned Preventative Maintenance,08/03/21,N B CONSTRUCTION,"1,520.79",Mar-21
EREWASH BOROUGH COUNCIL,225009,Pedestrian Zones - Ilkeston and Long Eaton,Planned Preventative Maintenance,03/03/21,LEISURE LITES LIMTED,16.62,Mar-21
EREWASH BOROUGH COUNCIL,224390,Public Clocks,Electricity,18/02/21,TOTAL GAS & POWER LTD,20.01,Mar-21
EREWASH BOROUGH COUNCIL,224390,Green Space,Electricity,18/02/21,TOTAL GAS & POWER LTD,"3,764.02",Mar-21
EREWASH BOROUGH COUNCIL,224129,Green Space,Gas,16/02/21,TOTAL GAS & POWER LTD,631.88,Mar-21
EREWASH BOROUGH COUNCIL,224780,Balance Sheet,Building Works,03/03/21,J TOMLINSON LIMITED,"129,366.18",Mar-21
EREWASH BOROUGH COUNCIL,224388,Balance Sheet,Building Works,24/02/21,ONSITE CENTRAL LTD,935.27,Mar-21
EREWASH BOROUGH COUNCIL,225137,Balance Sheet,ICT Works,21/03/21,MACILDOWIE RECRUITMENT EXPERTISE,"1,194.90",Mar-21
EREWASH BOROUGH COUNCIL,225019,Balance Sheet,Grant Payments,15/02/21,DERBYSHIRE COUNTY COUNCIL...,"5,051.00",Mar-21
EREWASH BOROUGH COUNCIL,225088,Balance Sheet,Grant Payments,15/02/21,DERBYSHIRE COUNTY COUNCIL...,"2,639.00",Mar-21
EREWASH BOROUGH COUNCIL,224360,Balance Sheet,COVID 19 - Additional Restrictions Grant,01/03/21,SUSAN ALLEN DRIVING SCHOOL,"3,500.00",Mar-21
EREWASH BOROUGH COUNCIL,224593,Balance Sheet,COVID 19 - Additional Restrictions Grant,02/03/21,KENSINGTON CAR SALES LTD,"1,571.00",Mar-21
EREWASH BOROUGH COUNCIL,224596,Balance Sheet,COVID 19 - Additional Restrictions Grant,02/03/21,EQUINE INSPIRATION,"1,571.00",Mar-21
EREWASH BOROUGH COUNCIL,224519,Balance Sheet,COVID 19 - Additional Restrictions Grant,02/03/21,M&D AESTHETICS,786.00,Mar-21
EREWASH BOROUGH COUNCIL,224521,Balance Sheet,COVID 19 - Additional Restrictions Grant,02/03/21,GAVIN DARBY T/A FRAILLOOP,"1,571.00",Mar-21
EREWASH BOROUGH COUNCIL,224528,Balance Sheet,COVID 19 - Additional Restrictions Grant,02/03/21,VICKYS SWIMSCHOOL,"1,571.00",Mar-21
EREWASH BOROUGH COUNCIL,224533,Balance Sheet,COVID 19 - Additional Restrictions Grant,02/03/21,BARGAIN HOMES,"1,571.00",Mar-21
EREWASH BOROUGH COUNCIL,224550,Balance Sheet,COVID 19 - Additional Restrictions Grant,02/03/21,REDACTED PERSONAL DATA,"1,571.00",Mar-21
EREWASH BOROUGH COUNCIL,224423,Balance Sheet,COVID 19 - Additional Restrictions Grant,02/03/21,POSH CAR LTD,"1,571.00",Mar-21
EREWASH BOROUGH COUNCIL,224425,Balance Sheet,COVID 19 - Additional Restrictions Grant,02/03/21,MIDLAND MEDIA SERVICES LTD,"1,571.00",Mar-21
EREWASH BOROUGH COUNCIL,224434,Balance Sheet,COVID 19 - Additional Restrictions Grant,02/03/21,REDACTED PERSONAL DATA,"1,571.00",Mar-21
EREWASH BOROUGH COUNCIL,224437,Balance Sheet,COVID 19 - Additional Restrictions Grant,02/03/21,CANTERBURY'S HOME IMPROVEMENTS,"1,571.00",Mar-21
EREWASH BOROUGH COUNCIL,224444,Balance Sheet,COVID 19 - Additional Restrictions Grant,02/03/21,ARA JOINT VENTURES LTD,"1,571.00",Mar-21
EREWASH BOROUGH COUNCIL,224453,Balance Sheet,COVID 19 - Additional Restrictions Grant,02/03/21,ELITE FINISHING,"1,571.00",Mar-21
EREWASH BOROUGH COUNCIL,224463,Balance Sheet,COVID 19 - Additional Restrictions Grant,02/03/21,DESIGNZ,"1,571.00",Mar-21
EREWASH BOROUGH COUNCIL,224467,Balance Sheet,COVID 19 - Additional Restrictions Grant,02/03/21,REDACTED PERSONAL DATA,"1,571.00",Mar-21
EREWASH BOROUGH COUNCIL,224469,Balance Sheet,COVID 19 - Additional Restrictions Grant,02/03/21,KNIGHT TRAVEL LTD,"1,571.00",Mar-21
EREWASH BOROUGH COUNCIL,224473,Balance Sheet,COVID 19 - Additional Restrictions Grant,02/03/21,POSH NOSH (EAST MIDLANDS) LTD,"2,357.00",Mar-21
EREWASH BOROUGH COUNCIL,224482,Balance Sheet,COVID 19 - Additional Restrictions Grant,02/03/21,AMALFI WOMAN LTD,"2,357.00",Mar-21
EREWASH BOROUGH COUNCIL,224484,Balance Sheet,COVID 19 - Additional Restrictions Grant,02/03/21,HELPING HOOVES DERBYSHIRE CIC,"1,571.00",Mar-21
EREWASH BOROUGH COUNCIL,224486,Balance Sheet,COVID 19 - Additional Restrictions Grant,02/03/21,PETSTAY DERBY,"1,571.00",Mar-21
EREWASH BOROUGH COUNCIL,224490,Balance Sheet,COVID 19 - Additional Restrictions Grant,02/03/21,MOHAMMED HANIF T/A TAXI DRIVER,"1,571.00",Mar-21
EREWASH BOROUGH COUNCIL,224503,Balance Sheet,COVID 19 - Additional Restrictions Grant,02/03/21,WHILE I BREATHE,"1,571.00",Mar-21
EREWASH BOROUGH COUNCIL,224504,Balance Sheet,COVID 19 - Additional Restrictions Grant,02/03/21,THE HOUSE OF SK-1 LTD,"1,571.00",Mar-21
EREWASH BOROUGH COUNCIL,224511,Balance Sheet,COVID 19 - Additional Restrictions Grant,02/03/21,CROWDPULLERS (EVENTS) LIMITED,"1,571.00",Mar-21
EREWASH BOROUGH COUNCIL,224566,Balance Sheet,COVID 19 - Additional Restrictions Grant,02/03/21,REDACTED PERSONAL DATA,"1,571.00",Mar-21
EREWASH BOROUGH COUNCIL,224573,Balance Sheet,COVID 19 - Additional Restrictions Grant,02/03/21,REDACTED PERSONAL DATA,"1,571.00",Mar-21
EREWASH BOROUGH COUNCIL,224661,Balance Sheet,COVID 19 - Additional Restrictions Grant,03/03/21,KEVS QUALITY BAGS,786.00,Mar-21
EREWASH BOROUGH COUNCIL,224669,Balance Sheet,COVID 19 - Additional Restrictions Grant,03/03/21,NICK GILL MORTGAGES LTD,"1,571.00",Mar-21
EREWASH BOROUGH COUNCIL,224657,Balance Sheet,COVID 19 - Additional Restrictions Grant,03/03/21,REDACTED PERSONAL DATA,"1,571.00",Mar-21
EREWASH BOROUGH COUNCIL,224658,Balance Sheet,COVID 19 - Additional Restrictions Grant,03/03/21,BLASTING SOLUTIONS LTD,"1,571.00",Mar-21
EREWASH BOROUGH COUNCIL,224617,Balance Sheet,COVID 19 - Additional Restrictions Grant,02/03/21,LIFE OF A BEAUTY GIRL MAKE UP ARTIST (SAM CAHILL),"1,571.00",Mar-21
EREWASH BOROUGH COUNCIL,224619,Balance Sheet,COVID 19 - Additional Restrictions Grant,02/03/21,PREMIER HIRE & TAXI (SANDIACRE) LTD,"1,571.00",Mar-21
EREWASH BOROUGH COUNCIL,224641,Balance Sheet,COVID 19 - Additional Restrictions Grant,03/03/21,REDACTED PERSONAL DATA,"1,571.00",Mar-21
EREWASH BOROUGH COUNCIL,224645,Balance Sheet,COVID 19 - Additional Restrictions Grant,03/03/21,UPTOWN PROMOTIONS LTD,"1,571.00",Mar-21
EREWASH BOROUGH COUNCIL,224678,Balance Sheet,COVID 19 - Additional Restrictions Grant,03/03/21,REDACTED PERSONAL DATA,"1,571.00",Mar-21
EREWASH BOROUGH COUNCIL,224683,Balance Sheet,COVID 19 - Additional Restrictions Grant,03/03/21,REDACTED PERSONAL DATA,"1,571.00",Mar-21
EREWASH BOROUGH COUNCIL,224815,Balance Sheet,COVID 19 - Additional Restrictions Grant,09/03/21,CHAMBERS PET SUPPLIES LTD,"3,071.00",Mar-21
EREWASH BOROUGH COUNCIL,224818,Balance Sheet,COVID 19 - Additional Restrictions Grant,09/03/21,BB BUTTERFLY,"3,071.00",Mar-21
EREWASH BOROUGH COUNCIL,224825,Balance Sheet,COVID 19 - Additional Restrictions Grant,09/03/21,VEGETABLE OIL MANAGEMENT LTD,"3,071.00",Mar-21
EREWASH BOROUGH COUNCIL,224830,Balance Sheet,COVID 19 - Additional Restrictions Grant,09/03/21,REDACTED PERSONAL DATA,"3,071.00",Mar-21
EREWASH BOROUGH COUNCIL,224832,Balance Sheet,COVID 19 - Additional Restrictions Grant,09/03/21,REDACTED PERSONAL DATA,"3,071.00",Mar-21
EREWASH BOROUGH COUNCIL,224933,Balance Sheet,COVID 19 - Additional Restrictions Grant,16/03/21,SELINA'S MOBILE BEAUTY,"3,071.00",Mar-21
EREWASH BOROUGH COUNCIL,224949,Balance Sheet,COVID 19 - Additional Restrictions Grant,16/03/21,REDACTED PERSONAL DATA,"3,071.00",Mar-21
EREWASH BOROUGH COUNCIL,225295,Balance Sheet,COVID 19 - Additional Restrictions Grant,30/03/21,MILLS JONES NAILS AND BEAUTY,"1,536.00",Mar-21
EREWASH BOROUGH COUNCIL,225294,Balance Sheet,COVID 19 - Additional Restrictions Grant,30/03/21,BROOKSIDE BOARDING KENNELS & CATTERY,"3,071.00",Mar-21
EREWASH BOROUGH COUNCIL,225340,Balance Sheet,COVID 19 - Additional Restrictions Grant,30/03/21,REDACTED PERSONAL DATA,"1,571.00",Mar-21
EREWASH BOROUGH COUNCIL,224420,Balance Sheet,Payroll Collection A/c - Income Tax,02/03/21,HMRC CUMBERNAULD,582.00,Mar-21
EREWASH BOROUGH COUNCIL,224864,Balance Sheet,Payroll Collection A/c - Purchase Added Years,15/03/21,DERBYSHIRE COUNTY COUNCIL...,247.22,Mar-21
EREWASH BOROUGH COUNCIL,225276,Green Space,Vehicle Tracking Repairs and Maintenance,01/02/21,MASTERNAUT (UK) LTD,"1,121.25",Mar-21
EREWASH BOROUGH COUNCIL,224898,Economic Development,Project Grants,05/03/21,DERBYSHIRE COUNTY COUNCIL...,"7,615.00",Mar-21
EREWASH BOROUGH COUNCIL,224804,Economic Development,Project Grants,25/02/21,DERBYSHIRE COUNTY COUNCIL...,"36,193.40",Mar-21
EREWASH BOROUGH COUNCIL,224723,Property and Estates,PPM Mechanical and Equipment,01/03/21,PEEL ELECTRICAL LTD,244.64,Mar-21
EREWASH BOROUGH COUNCIL,224411,Balance Sheet,PCC - Election,02/03/21,AMAZON PAYMENTS UK LTD,249.90,Mar-21
EREWASH BOROUGH COUNCIL,224699,Street Scene,Repairs and Maintenance,02/03/21,SCARAB SWEEPERS LTD,382.00,Mar-21
EREWASH BOROUGH COUNCIL,224258,Green Space,Repairs and Maintenance,22/02/21,PERRYS,214.40,Mar-21
EREWASH BOROUGH COUNCIL,224837,Green Space,Repairs and Maintenance,05/03/21,HENTON & CHATTELL LTD,760.72,Mar-21
EREWASH BOROUGH COUNCIL,225012,Kerbside Dry Recycling Collection,Repairs and Maintenance,29/01/21,WILLIAM WEST & SONS (ILKESTON) LIMITED,"1,099.00",Mar-21
EREWASH BOROUGH COUNCIL,225042,Household/Residual Waste Collection,Repairs and Maintenance,26/02/21,WILLIAM WEST & SONS (ILKESTON) LIMITED,"1,214.74",Mar-21
EREWASH BOROUGH COUNCIL,225096,Household/Residual Waste Collection,Repairs and Maintenance,09/03/21,DENNIS EAGLE LTD,819.56,Mar-21
EREWASH BOROUGH COUNCIL,224913,Street Scene,Car Allowance,06/03/21,STANTON RECYCLING LIMITED,521.60,Mar-21
EREWASH BOROUGH COUNCIL,224982,Transport Trading Account,General Equipment,28/02/21,BOC LTD,468.20,Mar-21
EREWASH BOROUGH COUNCIL,224869,Public Conveniences,Materials/Consumables,09/03/21,PROTECTIVE WEAR SUPPLIES LTD,128.77,Mar-21
EREWASH BOROUGH COUNCIL,224867,Street Scene,Materials/Consumables,08/03/21,TUDOR ENVIRONMENTAL,476.78,Mar-21
EREWASH BOROUGH COUNCIL,224913,Street Scene,Materials/Consumables,06/03/21,STANTON RECYCLING LIMITED,156.00,Mar-21
EREWASH BOROUGH COUNCIL,225268,Revenues and Benefits,Printing and Stationery,23/03/21,DSI BILLING SERVICES LTD,"5,624.64",Mar-21
EREWASH BOROUGH COUNCIL,224967,Community Services,Printing and Stationery,02/02/21,LLOYDS BANK,77.88,Mar-21
EREWASH BOROUGH COUNCIL,223755,Registration of Electors,Printing and Stationery,01/02/21,THOMSON REUTERS,288.00,Mar-21
EREWASH BOROUGH COUNCIL,225369,Homelessness,Temporary Accommodation,01/02/21,NOVOTEL NOTTINGHAM,"1,099.38",Mar-21
EREWASH BOROUGH COUNCIL,225361,Homelessness,Temporary Accommodation,05/02/21,NOVOTEL NOTTINGHAM,842.22,Mar-21
EREWASH BOROUGH COUNCIL,225367,Homelessness,Temporary Accommodation,01/02/21,NOVOTEL NOTTINGHAM,756.50,Mar-21
EREWASH BOROUGH COUNCIL,225355,Homelessness,Temporary Accommodation,07/03/21,NOVOTEL NOTTINGHAM,514.25,Mar-21
EREWASH BOROUGH COUNCIL,225354,Homelessness,Temporary Accommodation,29/01/21,NOVOTEL NOTTINGHAM,315.00,Mar-21
EREWASH BOROUGH COUNCIL,225359,Homelessness,Temporary Accommodation,01/03/21,NOVOTEL NOTTINGHAM,315.00,Mar-21
EREWASH BOROUGH COUNCIL,225363,Homelessness,Temporary Accommodation,09/02/21,NOVOTEL NOTTINGHAM,315.00,Mar-21
EREWASH BOROUGH COUNCIL,224705,Contaminated Land,Site Investigations,01/03/21,DERBYSHIRE COUNTY COUNCIL...,561.84,Mar-21
EREWASH BOROUGH COUNCIL,225717,ICT Support Services,Mobile Phones,02/03/21,LLOYDS BANK,231.49,Mar-21
EREWASH BOROUGH COUNCIL,224905,Revenues and Benefits,Postages,08/03/21,ROYAL MAIL GROUP LTD.,341.67,Mar-21
EREWASH BOROUGH COUNCIL,224967,ICT Support Services,Software Licences,02/02/21,LLOYDS BANK,473.14,Mar-21
EREWASH BOROUGH COUNCIL,224703,Economic Development,Grants and Subscriptions,05/01/21,EREWASH PARTNERSHIP LTD,"19,625.00",Mar-21
EREWASH BOROUGH COUNCIL,225126,Community Grants,Grants and Subscriptions,24/03/21,EREWASH COMMUNITY TRANSPORT,250.00,Mar-21
EREWASH BOROUGH COUNCIL,225128,Community Grants,Grants and Subscriptions,24/03/21,EVENTIDE COMMUNITY HALL.,250.00,Mar-21
EREWASH BOROUGH COUNCIL,224242,Accountancy,Subscriptions,12/02/21,CHARTERED INSTITUTE OF PUBLIC FINANCE & ACCOUNTANCY,"3,925.00",Mar-21
EREWASH BOROUGH COUNCIL,225717,Healthy Lifestyle Hub,Fees Costs and Expenses,02/03/21,LLOYDS BANK,20.76,Mar-21
EREWASH BOROUGH COUNCIL,225140,Communications,General Publicity and Promotion,03/03/21,ROYAL MAIL GROUP LTD.,"5,058.02",Mar-21
EREWASH BOROUGH COUNCIL,225267,Arts Development,Special Events,17/03/21,REDACTED PERSONAL DATA,680.00,Mar-21
EREWASH BOROUGH COUNCIL,225082,Building Control - Advice and Information,Contracted Services,01/03/21,RANSOMWOOD ESTATES UK LIMITED,531.67,Mar-21
EREWASH BOROUGH COUNCIL,224803,Economic Development,Contracted Services,01/03/21,PROXIMITY FUTURES T/A ELEPHANT WIFI,303.33,Mar-21
EREWASH BOROUGH COUNCIL,224131,Homelessness,Contracted Services,13/02/21,PEOPLE POTENTIAL POSSIBILITIES,"13,214.33",Mar-21
EREWASH BOROUGH COUNCIL,224301,Homelessness,Agency Staff,03/02/21,GREENACRE RECRUITMENT,570.71,Mar-21
EREWASH BOROUGH COUNCIL,225345,Green Space,Agency Staff,15/03/21,EXTRA PERSONNEL LTD,"4,877.13",Mar-21
EREWASH BOROUGH COUNCIL,224280,Household/Residual Waste Collection,Agency Staff,06/02/21,WORKCHAIN LTD,"1,044.73",Mar-21
EREWASH BOROUGH COUNCIL,224997,Kerbside Dry Recycling Collection,Agency Staff,06/03/21,WORKCHAIN LTD,696.49,Mar-21
EREWASH BOROUGH COUNCIL,224969,Kerbside Dry Recycling Collection,Agency Staff,27/01/21,THORN BAKER LIMITED,"1,430.57",Mar-21
EREWASH BOROUGH COUNCIL,225134,Kerbside Dry Recycling Collection,Agency Staff,01/03/21,EXTRA PERSONNEL LTD,"2,118.07",Mar-21
EREWASH BOROUGH COUNCIL,224997,Household/Residual Waste Collection,Agency Staff,06/03/21,WORKCHAIN LTD,"1,044.73",Mar-21
EREWASH BOROUGH COUNCIL,224969,Household/Residual Waste Collection,Agency Staff,27/01/21,THORN BAKER LIMITED,"2,145.85",Mar-21
EREWASH BOROUGH COUNCIL,224967,Street Scene,Training,02/02/21,LLOYDS BANK,225.00,Mar-21
EREWASH BOROUGH COUNCIL,224700,Property and Estates,Repairs and Maintenance,01/03/21,PEEL ELECTRICAL LTD,461.40,Mar-21
EREWASH BOROUGH COUNCIL,224858,Property and Estates,Repairs and Maintenance,08/03/21,PEEL ELECTRICAL LTD,972.76,Mar-21
EREWASH BOROUGH COUNCIL,224389,Merlin Way Depot - Ilkeston,Electricity,18/02/21,TOTAL GAS & POWER LTD,"2,715.17",Mar-21
EREWASH BOROUGH COUNCIL,224390,Ilkeston Market,Electricity,18/02/21,TOTAL GAS & POWER LTD,415.66,Mar-21
EREWASH BOROUGH COUNCIL,224389,Green Space,Electricity,18/02/21,TOTAL GAS & POWER LTD,595.48,Mar-21
EREWASH BOROUGH COUNCIL,224390,Pewit Golf Course,Electricity,18/02/21,TOTAL GAS & POWER LTD,72.27,Mar-21
EREWASH BOROUGH COUNCIL,224129,Erewash Museum,Gas,16/02/21,TOTAL GAS & POWER LTD,383.82,Mar-21
EREWASH BOROUGH COUNCIL,225238,Balance Sheet,ICT Works,28/02/21,ADVANCED BUSINESS SOFTWARE & SOLUTIONS LIMITED,"7,960.22",Mar-21
EREWASH BOROUGH COUNCIL,225084,Balance Sheet,Grant Payments,22/02/21,DERBYSHIRE COUNTY COUNCIL...,"3,597.00",Mar-21
EREWASH BOROUGH COUNCIL,225085,Balance Sheet,Grant Payments,22/02/21,DERBYSHIRE COUNTY COUNCIL...,"2,073.00",Mar-21
EREWASH BOROUGH COUNCIL,224375,Balance Sheet,COVID 19 - Additional Restrictions Grant,01/03/21,REDACTED PERSONAL DATA,"2,000.00",Mar-21
EREWASH BOROUGH COUNCIL,224358,Balance Sheet,COVID 19 - Additional Restrictions Grant,01/03/21,REDACTED PERSONAL DATA,"3,500.00",Mar-21
EREWASH BOROUGH COUNCIL,224589,Balance Sheet,COVID 19 - Additional Restrictions Grant,02/03/21,REDACTED PERSONAL DATA,"1,571.00",Mar-21
EREWASH BOROUGH COUNCIL,224603,Balance Sheet,COVID 19 - Additional Restrictions Grant,02/03/21,REDACTED PERSONAL DATA,"1,571.00",Mar-21
EREWASH BOROUGH COUNCIL,224516,Balance Sheet,COVID 19 - Additional Restrictions Grant,02/03/21,STYLISH HOMES (NOTTS) LTD,"1,571.00",Mar-21
EREWASH BOROUGH COUNCIL,224517,Balance Sheet,COVID 19 - Additional Restrictions Grant,02/03/21,NMT HOSPITALITY LTD,"1,571.00",Mar-21
EREWASH BOROUGH COUNCIL,224525,Balance Sheet,COVID 19 - Additional Restrictions Grant,02/03/21,PROJECT DELIVERY CONSULTING SERVICES LTD,"1,571.00",Mar-21
EREWASH BOROUGH COUNCIL,224538,Balance Sheet,COVID 19 - Additional Restrictions Grant,02/03/21,DB PLUMBING & PROPERTY SERVICES LTD,"1,571.00",Mar-21
EREWASH BOROUGH COUNCIL,224548,Balance Sheet,COVID 19 - Additional Restrictions Grant,02/03/21,SMILING CATS AND DOGS,"1,571.00",Mar-21
EREWASH BOROUGH COUNCIL,224558,Balance Sheet,COVID 19 - Additional Restrictions Grant,02/03/21,ONESTOPCARSHOPUK LIMITED,"1,571.00",Mar-21
EREWASH BOROUGH COUNCIL,224429,Balance Sheet,COVID 19 - Additional Restrictions Grant,02/03/21,APPLETREE CATERING,"1,571.00",Mar-21
EREWASH BOROUGH COUNCIL,224431,Balance Sheet,COVID 19 - Additional Restrictions Grant,02/03/21,MOTORVATE DRIVING SCHOOL,"1,571.00",Mar-21
EREWASH BOROUGH COUNCIL,224443,Balance Sheet,COVID 19 - Additional Restrictions Grant,02/03/21,RATMALLY LTD,"1,571.00",Mar-21
EREWASH BOROUGH COUNCIL,224457,Balance Sheet,COVID 19 - Additional Restrictions Grant,02/03/21,IMPACT MARKETING AND PUBLICITY LTD,"2,357.00",Mar-21
EREWASH BOROUGH COUNCIL,224477,Balance Sheet,COVID 19 - Additional Restrictions Grant,02/03/21,CJ ENTERTAINMENT HIRE,"1,571.00",Mar-21
EREWASH BOROUGH COUNCIL,224480,Balance Sheet,COVID 19 - Additional Restrictions Grant,02/03/21,REDACTED PERSONAL DATA,786.00,Mar-21
EREWASH BOROUGH COUNCIL,224488,Balance Sheet,COVID 19 - Additional Restrictions Grant,02/03/21,MILLIES RESTAURANT,"1,571.00",Mar-21
EREWASH BOROUGH COUNCIL,224492,Balance Sheet,COVID 19 - Additional Restrictions Grant,02/03/21,REDACTED PERSONAL DATA,"1,571.00",Mar-21
EREWASH BOROUGH COUNCIL,224497,Balance Sheet,COVID 19 - Additional Restrictions Grant,02/03/21,NEXUS EXHIBITIONS LTD,"1,571.00",Mar-21
EREWASH BOROUGH COUNCIL,224501,Balance Sheet,COVID 19 - Additional Restrictions Grant,02/03/21,LITTLE EATON PLAY SCHOOL,"1,571.00",Mar-21
EREWASH BOROUGH COUNCIL,224509,Balance Sheet,COVID 19 - Additional Restrictions Grant,02/03/21,MI TIEMPO SKINCARE & BEAUTY,"1,571.00",Mar-21
EREWASH BOROUGH COUNCIL,224510,Balance Sheet,COVID 19 - Additional Restrictions Grant,02/03/21,PCC OF ST JOHNS CHURCH,"1,571.00",Mar-21
EREWASH BOROUGH COUNCIL,224562,Balance Sheet,COVID 19 - Additional Restrictions Grant,02/03/21,JUS 2 CAB LIMITED,"1,571.00",Mar-21
EREWASH BOROUGH COUNCIL,224673,Balance Sheet,COVID 19 - Additional Restrictions Grant,03/03/21,REDACTED PERSONAL DATA,"1,571.00",Mar-21
EREWASH BOROUGH COUNCIL,224615,Balance Sheet,COVID 19 - Additional Restrictions Grant,02/03/21,REDACTED PERSONAL DATA,"1,571.00",Mar-21
EREWASH BOROUGH COUNCIL,224633,Balance Sheet,COVID 19 - Additional Restrictions Grant,02/03/21,LJB JEWELLERY,"1,571.00",Mar-21
EREWASH BOROUGH COUNCIL,224636,Balance Sheet,COVID 19 - Additional Restrictions Grant,02/03/21,BARKINGHAM PALACE ANIMAL HOTEL,"1,571.00",Mar-21
EREWASH BOROUGH COUNCIL,224638,Balance Sheet,COVID 19 - Additional Restrictions Grant,03/03/21,STEVE DEERY BOOKS,"1,571.00",Mar-21
EREWASH BOROUGH COUNCIL,224643,Balance Sheet,COVID 19 - Additional Restrictions Grant,03/03/21,REDACTED PERSONAL DATA,"1,571.00",Mar-21
EREWASH BOROUGH COUNCIL,224646,Balance Sheet,COVID 19 - Additional Restrictions Grant,03/03/21,NU-DRIVE,"1,571.00",Mar-21
EREWASH BOROUGH COUNCIL,224653,Balance Sheet,COVID 19 - Additional Restrictions Grant,03/03/21,TRUST JAMES DRIVING TUITION,"1,571.00",Mar-21
EREWASH BOROUGH COUNCIL,224654,Balance Sheet,COVID 19 - Additional Restrictions Grant,03/03/21,GOULD BARBERS (EAST ANGLIA) LTD,"1,571.00",Mar-21
EREWASH BOROUGH COUNCIL,224677,Balance Sheet,COVID 19 - Additional Restrictions Grant,03/03/21,AMK AUTOMOTIVE SOLUTIONS,"1,571.00",Mar-21
EREWASH BOROUGH COUNCIL,224824,Balance Sheet,COVID 19 - Additional Restrictions Grant,09/03/21,REDACTED PERSONAL DATA,"3,071.00",Mar-21
EREWASH BOROUGH COUNCIL,224826,Balance Sheet,COVID 19 - Additional Restrictions Grant,09/03/21,BROWFX MICROBLADING,"3,071.00",Mar-21
EREWASH BOROUGH COUNCIL,224811,Balance Sheet,COVID 19 - Additional Restrictions Grant,09/03/21,SIGN FORGE LIMITED,"3,071.00",Mar-21
EREWASH BOROUGH COUNCIL,224928,Balance Sheet,COVID 19 - Additional Restrictions Grant,16/03/21,BONNIES BEAUTY SPOT,"3,071.00",Mar-21
EREWASH BOROUGH COUNCIL,224932,Balance Sheet,COVID 19 - Additional Restrictions Grant,16/03/21,QUICK FIX KITCHENS,"3,071.00",Mar-21
EREWASH BOROUGH COUNCIL,224935,Balance Sheet,COVID 19 - Additional Restrictions Grant,16/03/21,REDACTED PERSONAL DATA,"3,071.00",Mar-21
EREWASH BOROUGH COUNCIL,224936,Balance Sheet,COVID 19 - Additional Restrictions Grant,16/03/21,REDACTED PERSONAL DATA,"3,071.00",Mar-21
EREWASH BOROUGH COUNCIL,224941,Balance Sheet,COVID 19 - Additional Restrictions Grant,16/03/21,SA CORPORATE LTD,"3,071.00",Mar-21
EREWASH BOROUGH COUNCIL,224942,Balance Sheet,COVID 19 - Additional Restrictions Grant,16/03/21,B J SUPPLIES,"4,607.00",Mar-21
EREWASH BOROUGH COUNCIL,225069,Balance Sheet,COVID 19 - Additional Restrictions Grant,23/03/21,LITTLE LAS VEGAS CASINO HIRE,"3,071.00",Mar-21
EREWASH BOROUGH COUNCIL,224862,Balance Sheet,Payroll Collection A/c - Income Tax,15/03/21,HMRC CUMBERNAULD,"68,718.40",Mar-21
EREWASH BOROUGH COUNCIL,224862,Balance Sheet,Payroll Collection A/c - National Insurance,15/03/21,HMRC CUMBERNAULD,"103,699.11",Mar-21
EREWASH BOROUGH COUNCIL,225291,Balance Sheet,Payroll Collection A/c - National Insurance,29/03/21,HMRC CUMBERNAULD,488.33,Mar-21
EREWASH BOROUGH COUNCIL,225180,Treasury Management and Bank Charges,Lloyds BACS Services,10/02/21,LLOYDS BANK,410.89,Mar-21
EREWASH BOROUGH COUNCIL,225180,Treasury Management and Bank Charges,Unpaid Cheque Fees,10/02/21,LLOYDS BANK,56.65,Mar-21
EREWASH BOROUGH COUNCIL,224881,Balance Sheet,Childcare Salary Sacrifice-Kiddie Vouchers,05/03/21,KIDDIVOUCHERS LTD,950.41,Mar-21
EREWASH BOROUGH COUNCIL,223654,Property and Estates,Reactive Maintenance,05/02/21,STEELCRAFT FABRICATIONS,650.00,Mar-21
EREWASH BOROUGH COUNCIL,225254,Property and Estates,PPM Mechanical and Equipment,28/02/21,ORTON MECHANICAL SERVICES,221.58,Mar-21
EREWASH BOROUGH COUNCIL,225221,Community Services,General Equipment,26/02/21,FERRET INFORMATION SYSTEMS LTD,134.25,Mar-21
EREWASH BOROUGH COUNCIL,224926,Basic Command Unit,General Equipment,26/01/21,SOUTH DERBYSHIRE CVS.,"4,000.00",Mar-21
EREWASH BOROUGH COUNCIL,224853,Sports Development Coaching & Courses,Materials/Consumables,08/03/21,BETTER BOUNCE DIRECT,260.00,Mar-21
EREWASH BOROUGH COUNCIL,223593,Green Space,Materials/Consumables,04/02/21,NIBRA SIGNS LTD,258.42,Mar-21
EREWASH BOROUGH COUNCIL,224868,Green Space,Materials/Consumables,03/03/21,PROTECTIVE WEAR SUPPLIES LTD,184.35,Mar-21
EREWASH BOROUGH COUNCIL,224794,Public Conveniences,Materials/Consumables,25/02/21,ILKESTON PLY & DIY LTD,93.33,Mar-21
EREWASH BOROUGH COUNCIL,224917,Revenues and Benefits,Printing and Stationery,01/03/21,OFFICE FURNITURE ONLINE,481.65,Mar-21
EREWASH BOROUGH COUNCIL,225251,ICT Support Services,Office Paper,17/03/21,ANTALIS DOCUMENT SUPPLIES,241.00,Mar-21
EREWASH BOROUGH COUNCIL,223698,Accountancy,Reference Literature and Publications,08/02/21,CHARTERED INSTITUTE OF PUBLIC FINANCE & ACCOUNTANCY,"1,690.00",Mar-21
EREWASH BOROUGH COUNCIL,225358,Homelessness,Temporary Accommodation,01/03/21,NOVOTEL NOTTINGHAM,284.96,Mar-21
EREWASH BOROUGH COUNCIL,225363,Homelessness,Temporary Accommodation,09/02/21,NOVOTEL NOTTINGHAM,456.48,Mar-21
EREWASH BOROUGH COUNCIL,225358,Homelessness,Temporary Accommodation,01/03/21,NOVOTEL NOTTINGHAM,315.00,Mar-21
EREWASH BOROUGH COUNCIL,225369,Homelessness,Temporary Accommodation,01/02/21,NOVOTEL NOTTINGHAM,315.00,Mar-21
EREWASH BOROUGH COUNCIL,225364,Homelessness,Temporary Accommodation,01/02/21,NOVOTEL NOTTINGHAM,315.00,Mar-21
EREWASH BOROUGH COUNCIL,225275,Property and Estates,Computer Software,02/03/21,ELF SOFTWARE LTD,"5,420.00",Mar-21
EREWASH BOROUGH COUNCIL,225151,Revenues and Benefits,Postages,19/03/21,FRAMA UK,"5,000.00",Mar-21
EREWASH BOROUGH COUNCIL,224398,ICT Support Services,Telephones,01/03/21,TELEPHONE TECHNOLOGY LTD,210.00,Mar-21
EREWASH BOROUGH COUNCIL,224850,Community Grants,Grants and Subscriptions,08/03/21,KIRK HALLAM COMMUNITY HALL ASSOCIATION.,500.00,Mar-21
EREWASH BOROUGH COUNCIL,225129,Community Grants,Grants and Subscriptions,24/03/21,ARENA COMMUNITY,"1,000.00",Mar-21
EREWASH BOROUGH COUNCIL,224346,Erewash Museum,Special Events,25/02/21,DBA CONSULTING LTD,"1,500.00",Mar-21
EREWASH BOROUGH COUNCIL,225083,Building Control - Advice and Information,Contracted Services,01/02/21,RANSOMWOOD ESTATES UK LIMITED,531.67,Mar-21
EREWASH BOROUGH COUNCIL,225210,Erewash Museum,Advertising,26/03/21,PICTORIAL LTD,84.00,Mar-21
EREWASH BOROUGH COUNCIL,225005,Kerbside Dry Recycling Collection,Bins,03/12/20,MGB PLASTICS LTD,"13,032.00",Mar-21
EREWASH BOROUGH COUNCIL,224856,Property and Estates,Alarms Reactive Maintenance,08/03/21,TECSERV UK,389.50,Mar-21
EREWASH BOROUGH COUNCIL,223697,Street Scene,Street Furniture,09/02/21,NIBRA SIGNS LTD,727.54,Mar-21
EREWASH BOROUGH COUNCIL,224403,Public Conveniences,Agency Staff,15/02/21,EXTRA PERSONNEL LTD,621.46,Mar-21
EREWASH BOROUGH COUNCIL,225339,Public Conveniences,Agency Staff,08/03/21,EXTRA PERSONNEL LTD,"4,537.61",Mar-21
EREWASH BOROUGH COUNCIL,224299,Homelessness,Agency Staff,17/02/21,GREENACRE RECRUITMENT,394.35,Mar-21
EREWASH BOROUGH COUNCIL,225216,Homelessness,Agency Staff,24/02/21,GREENACRE RECRUITMENT,416.89,Mar-21
EREWASH BOROUGH COUNCIL,224996,Kerbside Dry Recycling Collection,Agency Staff,27/02/21,WORKCHAIN LTD,696.49,Mar-21
EREWASH BOROUGH COUNCIL,224975,Kerbside Dry Recycling Collection,Agency Staff,09/02/21,THORN BAKER LIMITED,"3,819.80",Mar-21
EREWASH BOROUGH COUNCIL,225132,Kerbside Dry Recycling Collection,Agency Staff,08/02/21,EXTRA PERSONNEL LTD,"2,156.66",Mar-21
EREWASH BOROUGH COUNCIL,225132,Household/Residual Waste Collection,Agency Staff,08/02/21,EXTRA PERSONNEL LTD,"3,234.98",Mar-21
EREWASH BOROUGH COUNCIL,225134,Household/Residual Waste Collection,Agency Staff,01/03/21,EXTRA PERSONNEL LTD,"3,177.11",Mar-21
EREWASH BOROUGH COUNCIL,225350,Non-domestic Rates Collection,Salaries,04/01/21,REDACTED PERSONAL DATA,949.82,Mar-21
EREWASH BOROUGH COUNCIL,225158,Pedestrian Zones - Ilkeston and Long Eaton,Repairs and Maintenance,08/03/21,N B CONSTRUCTION,107.50,Mar-21
EREWASH BOROUGH COUNCIL,223716,Property and Estates,Repairs and Maintenance,04/02/21,MDB PLUMBING (NOTTM) LTD,567.13,Mar-21
EREWASH BOROUGH COUNCIL,224761,Property and Estates,Repairs and Maintenance,04/03/21,MDB PLUMBING (NOTTM) LTD,497.43,Mar-21
EREWASH BOROUGH COUNCIL,224390,Erewash Museum,Electricity,18/02/21,TOTAL GAS & POWER LTD,217.88,Mar-21
EREWASH BOROUGH COUNCIL,224390,Toll Bar House - Ilkeston,Electricity,18/02/21,TOTAL GAS & POWER LTD,895.63,Mar-21
EREWASH BOROUGH COUNCIL,224390,Bridge Arches - Long Eaton,Electricity,18/02/21,TOTAL GAS & POWER LTD,41.97,Mar-21
EREWASH BOROUGH COUNCIL,224390,Car Parking,Electricity,18/02/21,TOTAL GAS & POWER LTD,788.96,Mar-21
EREWASH BOROUGH COUNCIL,224129,Civic Accommodation - Ilkeston,Gas,16/02/21,TOTAL GAS & POWER LTD,706.15,Mar-21
EREWASH BOROUGH COUNCIL,216452,Victoria Park Leisure Centre,Metered Water,01/08/19,WATER PLUS,921.16,Mar-21
EREWASH BOROUGH COUNCIL,222425,Victoria Park Leisure Centre,Unmetered Water,20/11/20,WATER PLUS,655.40,Mar-21
EREWASH BOROUGH COUNCIL,224414,Balance Sheet,ICT Works,28/02/21,MACILDOWIE RECRUITMENT EXPERTISE,964.46,Mar-21
EREWASH BOROUGH COUNCIL,224366,Balance Sheet,COVID 19 - Additional Restrictions Grant,01/03/21,ILKESTON TYRE SERVICES,"1,500.00",Mar-21
EREWASH BOROUGH COUNCIL,224368,Balance Sheet,COVID 19 - Additional Restrictions Grant,01/03/21,REDACTED PERSONAL DATA,"1,500.00",Mar-21
EREWASH BOROUGH COUNCIL,224602,Balance Sheet,COVID 19 - Additional Restrictions Grant,02/03/21,YORKES HOSIERY,786.00,Mar-21
EREWASH BOROUGH COUNCIL,224606,Balance Sheet,COVID 19 - Additional Restrictions Grant,02/03/21,SCOTT WALSTER,"1,571.00",Mar-21
EREWASH BOROUGH COUNCIL,224532,Balance Sheet,COVID 19 - Additional Restrictions Grant,02/03/21,IAN HANDS CONSULTANCY LTD,"1,571.00",Mar-21
EREWASH BOROUGH COUNCIL,224551,Balance Sheet,COVID 19 - Additional Restrictions Grant,02/03/21,KUSTOM RIMZ UK LTD,"1,571.00",Mar-21
EREWASH BOROUGH COUNCIL,224441,Balance Sheet,COVID 19 - Additional Restrictions Grant,02/03/21,REDACTED PERSONAL DATA,"1,571.00",Mar-21
EREWASH BOROUGH COUNCIL,224439,Balance Sheet,COVID 19 - Additional Restrictions Grant,02/03/21,KC JONES CONFERENCE & EVENTS LTD,"2,357.00",Mar-21
EREWASH BOROUGH COUNCIL,224446,Balance Sheet,COVID 19 - Additional Restrictions Grant,02/03/21,REHANNAH ROSE NAILS BROWS BEAUTY,"1,571.00",Mar-21
EREWASH BOROUGH COUNCIL,224449,Balance Sheet,COVID 19 - Additional Restrictions Grant,02/03/21,DONS TAXIS,"1,571.00",Mar-21
EREWASH BOROUGH COUNCIL,224454,Balance Sheet,COVID 19 - Additional Restrictions Grant,02/03/21,GRANT STIRLING TRAVEL LTD,"1,571.00",Mar-21
EREWASH BOROUGH COUNCIL,224464,Balance Sheet,COVID 19 - Additional Restrictions Grant,02/03/21,TOM WATSON BARBER,786.00,Mar-21
EREWASH BOROUGH COUNCIL,224466,Balance Sheet,COVID 19 - Additional Restrictions Grant,02/03/21,REDACTED PERSONAL DATA,"1,571.00",Mar-21
EREWASH BOROUGH COUNCIL,224470,Balance Sheet,COVID 19 - Additional Restrictions Grant,02/03/21,EMMA HARRIS LINGERIE LTD,"1,571.00",Mar-21
EREWASH BOROUGH COUNCIL,224472,Balance Sheet,COVID 19 - Additional Restrictions Grant,02/03/21,A-UNIT LIMITED,"1,571.00",Mar-21
EREWASH BOROUGH COUNCIL,224478,Balance Sheet,COVID 19 - Additional Restrictions Grant,02/03/21,JMS PHOTOGRAPHY,"1,571.00",Mar-21
EREWASH BOROUGH COUNCIL,224479,Balance Sheet,COVID 19 - Additional Restrictions Grant,02/03/21,TRENT MARQUEES,"1,571.00",Mar-21
EREWASH BOROUGH COUNCIL,224491,Balance Sheet,COVID 19 - Additional Restrictions Grant,02/03/21,JANET TOMBLIN TRAVEL COUNSELLOR,"1,571.00",Mar-21
EREWASH BOROUGH COUNCIL,224502,Balance Sheet,COVID 19 - Additional Restrictions Grant,02/03/21,APPOLO DJS,"1,571.00",Mar-21
EREWASH BOROUGH COUNCIL,224507,Balance Sheet,COVID 19 - Additional Restrictions Grant,02/03/21,QUICKBITS REVIVAL LIMITED,"1,571.00",Mar-21
EREWASH BOROUGH COUNCIL,224515,Balance Sheet,COVID 19 - Additional Restrictions Grant,02/03/21,TERESA SMITH T/A BELLE AME,"1,571.00",Mar-21
EREWASH BOROUGH COUNCIL,224560,Balance Sheet,COVID 19 - Additional Restrictions Grant,02/03/21,LEEN VALLEY PLANTS,"1,571.00",Mar-21
EREWASH BOROUGH COUNCIL,224563,Balance Sheet,COVID 19 - Additional Restrictions Grant,02/03/21,ELITE CONNECT,"1,571.00",Mar-21
EREWASH BOROUGH COUNCIL,224572,Balance Sheet,COVID 19 - Additional Restrictions Grant,02/03/21,BEAUTY LOUNGE BY REET,"1,571.00",Mar-21
EREWASH BOROUGH COUNCIL,224660,Balance Sheet,COVID 19 - Additional Restrictions Grant,03/03/21,REDACTED PERSONAL DATA,"1,571.00",Mar-21
EREWASH BOROUGH COUNCIL,224613,Balance Sheet,COVID 19 - Additional Restrictions Grant,02/03/21,REDACTED PERSONAL DATA,"1,571.00",Mar-21
EREWASH BOROUGH COUNCIL,224616,Balance Sheet,COVID 19 - Additional Restrictions Grant,02/03/21,REDACTED PERSONAL DATA,"1,571.00",Mar-21
EREWASH BOROUGH COUNCIL,224630,Balance Sheet,COVID 19 - Additional Restrictions Grant,02/03/21,THE WELLBEING DEN,"1,571.00",Mar-21
EREWASH BOROUGH COUNCIL,224640,Balance Sheet,COVID 19 - Additional Restrictions Grant,03/03/21,LIEVENS FURNITURE LIMITED,"1,571.00",Mar-21
EREWASH BOROUGH COUNCIL,224648,Balance Sheet,COVID 19 - Additional Restrictions Grant,03/03/21,M & L ENGRAVING,"1,571.00",Mar-21
EREWASH BOROUGH COUNCIL,224682,Balance Sheet,COVID 19 - Additional Restrictions Grant,03/03/21,REDACTED PERSONAL DATA,"1,571.00",Mar-21
EREWASH BOROUGH COUNCIL,224685,Balance Sheet,COVID 19 - Additional Restrictions Grant,03/03/21,DAVID GUNDRY UPHOLSTERY LTD.,"1,571.00",Mar-21
EREWASH BOROUGH COUNCIL,224821,Balance Sheet,COVID 19 - Additional Restrictions Grant,09/03/21,INDEPENDENCE-DRIVING SCHOOL,"3,071.00",Mar-21
EREWASH BOROUGH COUNCIL,224934,Balance Sheet,COVID 19 - Additional Restrictions Grant,16/03/21,REDACTED PERSONAL DATA,"3,071.00",Mar-21
EREWASH BOROUGH COUNCIL,224940,Balance Sheet,COVID 19 - Additional Restrictions Grant,16/03/21,REDACTED PERSONAL DATA,"3,071.00",Mar-21
EREWASH BOROUGH COUNCIL,224946,Balance Sheet,COVID 19 - Additional Restrictions Grant,16/03/21,REDACTED PERSONAL DATA,"3,071.00",Mar-21
EREWASH BOROUGH COUNCIL,225193,Balance Sheet,COVID 19 - Additional Restrictions Grant,18/03/21,WATCHES AND DIAMONDS FOR YOU LIMITED,"2,096.00",Mar-21
EREWASH BOROUGH COUNCIL,225192,Balance Sheet,COVID 19 - Additional Restrictions Grant,18/03/21,PURPLEHAZE'S PARLOUR LTD,"2,096.00",Mar-21
EREWASH BOROUGH COUNCIL,225299,Balance Sheet,COVID 19 - Additional Restrictions Grant,30/03/21,REDACTED PERSONAL DATA,"3,071.00",Mar-21
EREWASH BOROUGH COUNCIL,225341,Balance Sheet,COVID 19 - Additional Restrictions Grant,30/03/21,REDACTED PERSONAL DATA,"1,500.00",Mar-21
EREWASH BOROUGH COUNCIL,225291,Balance Sheet,Payroll Collection A/c - Income Tax,29/03/21,HMRC CUMBERNAULD,401.80,Mar-21
EREWASH BOROUGH COUNCIL,225119,Balance Sheet,Payroll Collection A/c - Trade Union Subscriptions,24/03/21,UNISON,460.60,Mar-21
EREWASH BOROUGH COUNCIL,225115,Balance Sheet,Payroll Collection A/c - AVCS,24/03/21,PRUDENTIAL,"2,448.16",Mar-21
EREWASH BOROUGH COUNCIL,224862,Balance Sheet,Payroll Collection A/c - Statutory Maternity Pay,15/03/21,HMRC CUMBERNAULD,-669.51,Mar-21
EREWASH BOROUGH COUNCIL,225120,Balance Sheet,Payroll Collection A/c - Attachment Orders,24/03/21,HMCTS,257.09,Mar-21
EREWASH BOROUGH COUNCIL,225181,Treasury Management and Bank Charges,Lloyds BACS Services,10/03/21,LLOYDS BANK,275.27,Mar-21
EREWASH BOROUGH COUNCIL,225181,Treasury Management and Bank Charges,Lloyds Bank Charges for Debits and Credits,10/03/21,LLOYDS BANK,112.95,Mar-21
EREWASH BOROUGH COUNCIL,225276,Trade Waste,Vehicle Tracking Repairs and Maintenance,01/02/21,MASTERNAUT (UK) LTD,57.10,Mar-21
EREWASH BOROUGH COUNCIL,224416,Balance Sheet,Bond Deposit Accounts S106,24/02/21,DERBYSHIRE COUNTY COUNCIL...,"45,596.00",Mar-21
EREWASH BOROUGH COUNCIL,224898,Economic Development,Project Grants,05/03/21,DERBYSHIRE COUNTY COUNCIL...,"1,769.40",Mar-21
EREWASH BOROUGH COUNCIL,224889,Property and Estates,Reactive Maintenance,10/03/21,ALPHA PARTNER (MIDLANDS)  LIMITED,490.00,Mar-21
EREWASH BOROUGH COUNCIL,224740,Property and Estates,Reactive Maintenance,19/02/21,SIG TRADING LTD,399.28,Mar-21
EREWASH BOROUGH COUNCIL,224883,Property and Estates,PPM Mechanical and Equipment,04/03/21,MDB PLUMBING (NOTTM) LTD,"1,210.47",Mar-21
EREWASH BOROUGH COUNCIL,224844,Balance Sheet,PCC - Election,03/03/21,FURNITURE HIRE UK LTD,"7,129.86",Mar-21
EREWASH BOROUGH COUNCIL,223788,Street Scene,Repairs and Maintenance,11/02/21,SCARAB SWEEPERS LTD,483.46,Mar-21
EREWASH BOROUGH COUNCIL,224750,Street Scene,Repairs and Maintenance,02/03/21,SCARAB SWEEPERS LTD,224.64,Mar-21
EREWASH BOROUGH COUNCIL,224257,Green Space,Repairs and Maintenance,18/02/21,HENTON & CHATTELL LTD,798.02,Mar-21
EREWASH BOROUGH COUNCIL,224747,Green Space,Repairs and Maintenance,04/03/21,PARTSPLUS,320.22,Mar-21
EREWASH BOROUGH COUNCIL,224977,Green Space,Repairs and Maintenance,05/03/21,HENTON & CHATTELL LTD,838.90,Mar-21
EREWASH BOROUGH COUNCIL,223799,Household/Residual Waste Collection,Repairs and Maintenance,08/02/21,TERBERG MATEC UK,425.27,Mar-21
EREWASH BOROUGH COUNCIL,225016,Kerbside Dry Recycling Collection,Repairs and Maintenance,28/01/21,TERBERG MATEC UK,776.86,Mar-21
EREWASH BOROUGH COUNCIL,225099,Kerbside Dry Recycling Collection,Repairs and Maintenance,24/02/21,DENNIS EAGLE LTD,228.79,Mar-21
EREWASH BOROUGH COUNCIL,225103,Kerbside Dry Recycling Collection,Repairs and Maintenance,01/03/21,DENNIS EAGLE LTD,329.62,Mar-21
EREWASH BOROUGH COUNCIL,224967,Pewit Golf Course,Road Taxes,02/02/21,LLOYDS BANK,267.50,Mar-21
EREWASH BOROUGH COUNCIL,225011,Household/Residual Waste Collection,MOTs,26/02/21,WILLIAM WEST & SONS (ILKESTON) LIMITED,158.00,Mar-21
EREWASH BOROUGH COUNCIL,225139,Civic Accommodation - Long Eaton,General Equipment,15/03/21,CANDOR SERVICES LTD,488.00,Mar-21
EREWASH BOROUGH COUNCIL,225209,Planning Policy,Maintenance of Equipment,12/03/21,BROXTOWE BOROUGH COUNCIL,"5,699.00",Mar-21
EREWASH BOROUGH COUNCIL,225002,Transport Trading Account,Maintenance of Equipment,06/01/21,TECALEMIT GARAGE EQUIPMENT CO LTD,"1,214.20",Mar-21
EREWASH BOROUGH COUNCIL,225045,Green Space,Materials/Consumables,01/02/21,OLD HALL NURSERIES LTD,115.75,Mar-21
EREWASH BOROUGH COUNCIL,224768,Public Conveniences,Materials/Consumables,04/03/21,DART LTD,350.00,Mar-21
EREWASH BOROUGH COUNCIL,225717,Homelessness,Temporary Accommodation,02/03/21,LLOYDS BANK,364.01,Mar-21
EREWASH BOROUGH COUNCIL,225366,Homelessness,Temporary Accommodation,01/03/21,NOVOTEL NOTTINGHAM,"1,200.08",Mar-21
EREWASH BOROUGH COUNCIL,225357,Homelessness,Temporary Accommodation,01/03/21,NOVOTEL NOTTINGHAM,630.00,Mar-21
EREWASH BOROUGH COUNCIL,224888,Development Control - Fee Earning,Consultants Fees,31/10/20,CUSHMAN & WAKEFIELD,"2,750.00",Mar-21
EREWASH BOROUGH COUNCIL,224866,Internal Audit,Consultants Fees,10/03/21,BROXTOWE BOROUGH COUNCIL,"4,000.00",Mar-21
EREWASH BOROUGH COUNCIL,225717,Dog Control,Kennelling Costs,02/03/21,LLOYDS BANK,255.90,Mar-21
EREWASH BOROUGH COUNCIL,225717,Transport Trading Account,Computer Software,02/03/21,LLOYDS BANK,"1,381.18",Mar-21
EREWASH BOROUGH COUNCIL,225127,Community Grants,Grants and Subscriptions,24/03/21,KIRK HALLAM COMMUNITY HALL ASSOCIATION.,250.00,Mar-21
EREWASH BOROUGH COUNCIL,224967,Healthy Lifestyle Hub,Fees Costs and Expenses,02/02/21,LLOYDS BANK,44.62,Mar-21
EREWASH BOROUGH COUNCIL,225113,Arts Development,Special Events,15/03/21,PICTORIAL LTD,400.00,Mar-21
EREWASH BOROUGH COUNCIL,224207,Leisure Contract,Contracted Services,19/02/21,PARKWOOD LEISURE LTD,"26,911.47",Mar-21
EREWASH BOROUGH COUNCIL,224867,Cemeteries,Contracted Services,08/03/21,TUDOR ENVIRONMENTAL,32.86,Mar-21
EREWASH BOROUGH COUNCIL,224867,Green Space,Contracted Services,08/03/21,TUDOR ENVIRONMENTAL,66.10,Mar-21
EREWASH BOROUGH COUNCIL,224801,Planning Policy,Consultation,12/02/21,NOTTINGHAM CITY COUNCIL..,"8,000.00",Mar-21
EREWASH BOROUGH COUNCIL,224921,Balance Sheet,ICT Software Licence Payment in Advance,28/02/21,BOTTOMLINE TECHNOLOGIES LTD,"2,256.07",Mar-21
EREWASH BOROUGH COUNCIL,224280,Kerbside Dry Recycling Collection,Agency Staff,06/02/21,WORKCHAIN LTD,696.49,Mar-21
EREWASH BOROUGH COUNCIL,225344,Green Space,Agency Staff,15/03/21,EXTRA PERSONNEL LTD,"2,788.03",Mar-21
EREWASH BOROUGH COUNCIL,225344,Public Conveniences,Agency Staff,15/03/21,EXTRA PERSONNEL LTD,"1,268.32",Mar-21
EREWASH BOROUGH COUNCIL,224974,Kerbside Dry Recycling Collection,Agency Staff,09/03/21,THORN BAKER LIMITED,"1,860.17",Mar-21
EREWASH BOROUGH COUNCIL,224990,Kerbside Dry Recycling Collection,Agency Staff,18/02/21,QUALITY SERVICE RECRUITMENT LTD,434.08,Mar-21
EREWASH BOROUGH COUNCIL,225133,Kerbside Dry Recycling Collection,Agency Staff,15/02/21,EXTRA PERSONNEL LTD,"2,240.90",Mar-21
EREWASH BOROUGH COUNCIL,224972,Household/Residual Waste Collection,Agency Staff,24/02/21,THORN BAKER LIMITED,"1,836.13",Mar-21
EREWASH BOROUGH COUNCIL,225350,Housing Benefit Administration,Salaries,04/01/21,REDACTED PERSONAL DATA,"1,899.64",Mar-21
EREWASH BOROUGH COUNCIL,225060,Property and Estates,Planned Preventative Maintenance,11/03/21,ALPHA PARTNER (MIDLANDS)  LIMITED,"1,888.81",Mar-21
EREWASH BOROUGH COUNCIL,225009,Christmas Lights,Planned Preventative Maintenance,03/03/21,LEISURE LITES LIMTED,"2,793.97",Mar-21
EREWASH BOROUGH COUNCIL,224798,Property and Estates,Repairs and Maintenance,03/03/21,PEEL ELECTRICAL LTD,380.98,Mar-21
EREWASH BOROUGH COUNCIL,224389,Long Eaton Market,Electricity,18/02/21,TOTAL GAS & POWER LTD,176.86,Mar-21
EREWASH BOROUGH COUNCIL,224390,Belvoir Close Maintenance,Electricity,18/02/21,TOTAL GAS & POWER LTD,30.68,Mar-21
EREWASH BOROUGH COUNCIL,224390,Cemeteries,Electricity,18/02/21,TOTAL GAS & POWER LTD,283.40,Mar-21
EREWASH BOROUGH COUNCIL,224389,Sandiacre Friesland Sports Centre,Electricity,18/02/21,TOTAL GAS & POWER LTD,279.86,Mar-21
EREWASH BOROUGH COUNCIL,224129,Merlin Way Depot - Ilkeston,Gas,16/02/21,TOTAL GAS & POWER LTD,744.64,Mar-21
EREWASH BOROUGH COUNCIL,224860,Balance Sheet,ICT Works,07/03/21,MACILDOWIE RECRUITMENT EXPERTISE,"1,083.95",Mar-21
EREWASH BOROUGH COUNCIL,225086,Balance Sheet,Grant Payments,23/02/21,DERBYSHIRE COUNTY COUNCIL...,"4,579.81",Mar-21
EREWASH BOROUGH COUNCIL,224862,Balance Sheet,Apprenticeship Levy,15/03/21,HMRC CUMBERNAULD,"3,356.00",Mar-21
EREWASH BOROUGH COUNCIL,224367,Balance Sheet,COVID 19 - Additional Restrictions Grant,01/03/21,REDACTED PERSONAL DATA,"1,500.00",Mar-21
EREWASH BOROUGH COUNCIL,224369,Balance Sheet,COVID 19 - Additional Restrictions Grant,01/03/21,REDACTED PERSONAL DATA,"1,500.00",Mar-21
EREWASH BOROUGH COUNCIL,224373,Balance Sheet,COVID 19 - Additional Restrictions Grant,01/03/21,REDACTED PERSONAL DATA,"1,500.00",Mar-21
EREWASH BOROUGH COUNCIL,224374,Balance Sheet,COVID 19 - Additional Restrictions Grant,01/03/21,REDACTED PERSONAL DATA,"1,500.00",Mar-21
EREWASH BOROUGH COUNCIL,224585,Balance Sheet,COVID 19 - Additional Restrictions Grant,02/03/21,OUD LTD,"1,571.00",Mar-21
EREWASH BOROUGH COUNCIL,224586,Balance Sheet,COVID 19 - Additional Restrictions Grant,02/03/21,PARKSIDE HIGH CIC,"1,571.00",Mar-21
EREWASH BOROUGH COUNCIL,224595,Balance Sheet,COVID 19 - Additional Restrictions Grant,02/03/21,REDACTED PERSONAL DATA,"1,571.00",Mar-21
EREWASH BOROUGH COUNCIL,224597,Balance Sheet,COVID 19 - Additional Restrictions Grant,02/03/21,J WILTON DRIVING INSTRUCTOR,"1,571.00",Mar-21
EREWASH BOROUGH COUNCIL,224600,Balance Sheet,COVID 19 - Additional Restrictions Grant,02/03/21,EDGE 2 DETAIL LTD.,"2,357.00",Mar-21
EREWASH BOROUGH COUNCIL,224531,Balance Sheet,COVID 19 - Additional Restrictions Grant,02/03/21,REDACTED PERSONAL DATA,"1,571.00",Mar-21
EREWASH BOROUGH COUNCIL,224539,Balance Sheet,COVID 19 - Additional Restrictions Grant,02/03/21,TUCK ME UNDER LTD,"1,571.00",Mar-21
EREWASH BOROUGH COUNCIL,224536,Balance Sheet,COVID 19 - Additional Restrictions Grant,02/03/21,IRFAN HAMID T/A TAXI DRIVER,"1,571.00",Mar-21
EREWASH BOROUGH COUNCIL,224541,Balance Sheet,COVID 19 - Additional Restrictions Grant,02/03/21,S&E BEAUTY LOUNGE,"1,571.00",Mar-21
EREWASH BOROUGH COUNCIL,224543,Balance Sheet,COVID 19 - Additional Restrictions Grant,02/03/21,REDACTED PERSONAL DATA,"1,571.00",Mar-21
EREWASH BOROUGH COUNCIL,224549,Balance Sheet,COVID 19 - Additional Restrictions Grant,02/03/21,COLUMBINE FARM KENNELS,"1,571.00",Mar-21
EREWASH BOROUGH COUNCIL,224428,Balance Sheet,COVID 19 - Additional Restrictions Grant,02/03/21,ADAM FRETWELL PT,786.00,Mar-21
EREWASH BOROUGH COUNCIL,224442,Balance Sheet,COVID 19 - Additional Restrictions Grant,02/03/21,CFA STORES LTD,"2,357.00",Mar-21
EREWASH BOROUGH COUNCIL,224450,Balance Sheet,COVID 19 - Additional Restrictions Grant,02/03/21,REDACTED PERSONAL DATA,"1,571.00",Mar-21
EREWASH BOROUGH COUNCIL,224455,Balance Sheet,COVID 19 - Additional Restrictions Grant,02/03/21,ALAN LITMAN LTD,"2,357.00",Mar-21
EREWASH BOROUGH COUNCIL,224498,Balance Sheet,COVID 19 - Additional Restrictions Grant,02/03/21,S P RENWICK GARAGE SERVICES,"1,571.00",Mar-21
EREWASH BOROUGH COUNCIL,224506,Balance Sheet,COVID 19 - Additional Restrictions Grant,02/03/21,JENSON PRESS PRINTERS,"1,571.00",Mar-21
EREWASH BOROUGH COUNCIL,224565,Balance Sheet,COVID 19 - Additional Restrictions Grant,02/03/21,REDACTED PERSONAL DATA,"1,571.00",Mar-21
EREWASH BOROUGH COUNCIL,224564,Balance Sheet,COVID 19 - Additional Restrictions Grant,02/03/21,REDACTED PERSONAL DATA,"1,571.00",Mar-21
EREWASH BOROUGH COUNCIL,224569,Balance Sheet,COVID 19 - Additional Restrictions Grant,02/03/21,BARE WAXING,"1,571.00",Mar-21
EREWASH BOROUGH COUNCIL,224571,Balance Sheet,COVID 19 - Additional Restrictions Grant,02/03/21,POWER BOX CREATIVE,"1,571.00",Mar-21
EREWASH BOROUGH COUNCIL,224582,Balance Sheet,COVID 19 - Additional Restrictions Grant,02/03/21,REDACTED PERSONAL DATA,"1,571.00",Mar-21
EREWASH BOROUGH COUNCIL,224662,Balance Sheet,COVID 19 - Additional Restrictions Grant,03/03/21,REDACTED PERSONAL DATA,"1,571.00",Mar-21
EREWASH BOROUGH COUNCIL,224664,Balance Sheet,COVID 19 - Additional Restrictions Grant,03/03/21,A ROBINSON AND SONS,"1,571.00",Mar-21
EREWASH BOROUGH COUNCIL,224670,Balance Sheet,COVID 19 - Additional Restrictions Grant,03/03/21,REDACTED PERSONAL DATA,"1,571.00",Mar-21
EREWASH BOROUGH COUNCIL,224674,Balance Sheet,COVID 19 - Additional Restrictions Grant,03/03/21,SUSAN ALLEN DRIVING SCHOOL,"1,571.00",Mar-21
EREWASH BOROUGH COUNCIL,224620,Balance Sheet,COVID 19 - Additional Restrictions Grant,02/03/21,AIRVEND UL LTD,"1,571.00",Mar-21
EREWASH BOROUGH COUNCIL,224621,Balance Sheet,COVID 19 - Additional Restrictions Grant,02/03/21,PITBOSS BBQ LIMITED,"1,571.00",Mar-21
EREWASH BOROUGH COUNCIL,224628,Balance Sheet,COVID 19 - Additional Restrictions Grant,02/03/21,THE NEVERLAND MUSIC COMPANY,"1,571.00",Mar-21
EREWASH BOROUGH COUNCIL,224629,Balance Sheet,COVID 19 - Additional Restrictions Grant,02/03/21,REDACTED PERSONAL DATA,"1,571.00",Mar-21
EREWASH BOROUGH COUNCIL,224634,Balance Sheet,COVID 19 - Additional Restrictions Grant,02/03/21,REDACTED PERSONAL DATA,786.00,Mar-21
EREWASH BOROUGH COUNCIL,224649,Balance Sheet,COVID 19 - Additional Restrictions Grant,03/03/21,TRUSS'S TAXI,"1,571.00",Mar-21
EREWASH BOROUGH COUNCIL,224651,Balance Sheet,COVID 19 - Additional Restrictions Grant,03/03/21,SNAPE JOINERY LTD,"1,571.00",Mar-21
EREWASH BOROUGH COUNCIL,224655,Balance Sheet,COVID 19 - Additional Restrictions Grant,03/03/21,DHIENDSA STORES,"1,571.00",Mar-21
EREWASH BOROUGH COUNCIL,224679,Balance Sheet,COVID 19 - Additional Restrictions Grant,03/03/21,DRAYCOTT BREWING COMPANY LTD,"1,571.00",Mar-21
EREWASH BOROUGH COUNCIL,224687,Balance Sheet,COVID 19 - Additional Restrictions Grant,03/03/21,REDACTED PERSONAL DATA,"1,571.00",Mar-21
EREWASH BOROUGH COUNCIL,224688,Balance Sheet,COVID 19 - Additional Restrictions Grant,03/03/21,REDACTED PERSONAL DATA,"1,571.00",Mar-21
EREWASH BOROUGH COUNCIL,224828,Balance Sheet,COVID 19 - Additional Restrictions Grant,09/03/21,REDACTED PERSONAL DATA,"3,071.00",Mar-21
EREWASH BOROUGH COUNCIL,224930,Balance Sheet,COVID 19 - Additional Restrictions Grant,16/03/21,UNIQUE FURNITURE LTD,"3,071.00",Mar-21
EREWASH BOROUGH COUNCIL,224931,Balance Sheet,COVID 19 - Additional Restrictions Grant,16/03/21,REDACTED PERSONAL DATA,"3,071.00",Mar-21
EREWASH BOROUGH COUNCIL,224938,Balance Sheet,COVID 19 - Additional Restrictions Grant,16/03/21,JKBODYREPAIRS,"5,071.00",Mar-21
EREWASH BOROUGH COUNCIL,225074,Balance Sheet,COVID 19 - Additional Restrictions Grant,23/03/21,SM BEAUTY,"3,071.00",Mar-21
EREWASH BOROUGH COUNCIL,225073,Balance Sheet,COVID 19 - Additional Restrictions Grant,23/03/21,REDACTED PERSONAL DATA,"3,071.00",Mar-21
EREWASH BOROUGH COUNCIL,225297,Balance Sheet,COVID 19 - Additional Restrictions Grant,30/03/21,REDACTED PERSONAL DATA,"3,071.00",Mar-21
EREWASH BOROUGH COUNCIL,225304,Balance Sheet,COVID 19 - Additional Restrictions Grant,30/03/21,REDACTED PERSONAL DATA,"3,071.00",Mar-21
EREWASH BOROUGH COUNCIL,224420,Balance Sheet,Payroll Collection A/c - National Insurance,02/03/21,HMRC CUMBERNAULD,778.00,Mar-21
EREWASH BOROUGH COUNCIL,225122,Balance Sheet,Payroll Collection A/c - Labour Party Funds,24/03/21,EREWASH LABOUR GROUP,509.43,Mar-21
EREWASH BOROUGH COUNCIL,225181,Treasury Management and Bank Charges,Unpaid Cheque Fees,10/03/21,LLOYDS BANK,54.13,Mar-21
EREWASH BOROUGH COUNCIL,224139,Street Scene,Maintenance of Bus Shelters,10/02/21,SHELTER MAINTENANCE CO,375.00,Mar-21
EREWASH BOROUGH COUNCIL,225310,Car Parking,Reactive Maintenance,30/03/21,E.ON UK ENERGY SERVICES,250.00,Mar-21
EREWASH BOROUGH COUNCIL,224796,Property and Estates,Reactive Maintenance,25/02/21,ALPHA PARTNER (MIDLANDS)  LIMITED,600.00,Mar-21
EREWASH BOROUGH COUNCIL,223844,Property and Estates,PPM Mechanical and Equipment,11/02/21,MDB PLUMBING (NOTTM) LTD,399.71,Mar-21
EREWASH BOROUGH COUNCIL,225009,Christmas Lights,PPM Mechanical and Equipment,03/03/21,LEISURE LITES LIMTED,"2,639.41",Mar-21
EREWASH BOROUGH COUNCIL,225040,Kerbside Dry Recycling Collection,Repairs and Maintenance,18/03/21,VEHICLE WEIGHING SOLUTIONS,416.31,Mar-21
EREWASH BOROUGH COUNCIL,225003,Trade Waste,Repairs and Maintenance,22/02/21,DENNIS EAGLE LTD,251.06,Mar-21
EREWASH BOROUGH COUNCIL,225104,Household/Residual Waste Collection,Repairs and Maintenance,02/03/21,DENNIS EAGLE LTD,509.66,Mar-21
EREWASH BOROUGH COUNCIL,225245,Household/Residual Waste Collection,Repairs and Maintenance,18/03/21,DENNIS EAGLE LTD,439.99,Mar-21
EREWASH BOROUGH COUNCIL,225330,Household/Residual Waste Collection,Repairs and Maintenance,18/03/21,T C HARRISON GROUP LTD,239.53,Mar-21
EREWASH BOROUGH COUNCIL,224967,Green Space,Road Taxes,02/02/21,LLOYDS BANK,267.50,Mar-21
EREWASH BOROUGH COUNCIL,225139,Civic Accommodation - Ilkeston,General Equipment,15/03/21,CANDOR SERVICES LTD,330.00,Mar-21
EREWASH BOROUGH COUNCIL,225717,Development Control - Fee Earning,General Equipment,02/03/21,LLOYDS BANK,50.65,Mar-21
EREWASH BOROUGH COUNCIL,225265,Building Control - Advice and Information,General Equipment,16/03/21,EURO BUSINESS SERVICES,298.00,Mar-21
EREWASH BOROUGH COUNCIL,224967,Commissioned Projects,General Equipment,02/02/21,LLOYDS BANK,758.30,Mar-21
EREWASH BOROUGH COUNCIL,225141,Reprographics,Equipment Leasing Charge,12/03/21,KONICA MINOLTA BUSINESS SOLUTIONS (UK) LTD,"1,014.93",Mar-21
EREWASH BOROUGH COUNCIL,223757,Green Space,Materials/Consumables,08/02/21,CROMWELL POLYTHENE LTD,"1,168.65",Mar-21
EREWASH BOROUGH COUNCIL,224877,Cemeteries,Materials/Consumables,08/03/21,RAILWAY SLEEPERS Ltd,319.96,Mar-21
EREWASH BOROUGH COUNCIL,225276,Property and Estates,Protective Clothing,01/02/21,MASTERNAUT (UK) LTD,44.85,Mar-21
EREWASH BOROUGH COUNCIL,225717,Household/Residual Waste Collection,Protective Clothing,02/03/21,LLOYDS BANK,116.24,Mar-21
EREWASH BOROUGH COUNCIL,225221,Community Services,Printing and Stationery,26/02/21,FERRET INFORMATION SYSTEMS LTD,134.25,Mar-21
EREWASH BOROUGH COUNCIL,225026,External Audit,Audit Fees,18/03/21,CABINET OFFICE,496.80,Mar-21
EREWASH BOROUGH COUNCIL,224698,Homelessness,Temporary Accommodation,14/08/20,SOUTH DERBYSHIRE DISTRICT COUNCIL,500.00,Mar-21
EREWASH BOROUGH COUNCIL,225371,Homelessness,Temporary Accommodation,01/02/21,NOVOTEL NOTTINGHAM,"3,238.15",Mar-21
EREWASH BOROUGH COUNCIL,225368,Homelessness,Temporary Accommodation,01/03/21,NOVOTEL NOTTINGHAM,"1,200.08",Mar-21
EREWASH BOROUGH COUNCIL,225357,Homelessness,Temporary Accommodation,01/03/21,NOVOTEL NOTTINGHAM,55.76,Mar-21
EREWASH BOROUGH COUNCIL,225231,ICT Support Services,Data Lines,10/03/21,VIRGIN MEDIA BUSINESS LTD,"4,160.85",Mar-21
EREWASH BOROUGH COUNCIL,224988,ICT Support Services,Mobile Phones,01/03/21,CLASS AFFINITY PROJECTS LTD,822.30,Mar-21
EREWASH BOROUGH COUNCIL,225058,Building Control - Fee Earning,Software Licences,15/02/21,CIVICA UK LIMITED,"1,340.97",Mar-21
EREWASH BOROUGH COUNCIL,225114,Community Grants,Grants and Subscriptions,24/03/21,OCKBROOK & BORROWASH OVER 60s SOCIAL CLUB,250.00,Mar-21
EREWASH BOROUGH COUNCIL,224726,Non-domestic Rates Collection,Fees Costs and Expenses,24/02/21,INFORM CPI LTD,400.00,Mar-21
EREWASH BOROUGH COUNCIL,224908,Council Tax Collection,Fees Costs and Expenses,23/02/21,WILKIN CHAPMAN LLP,933.70,Mar-21
EREWASH BOROUGH COUNCIL,224955,Council Tax Collection,Fees Costs and Expenses,15/03/21,PENHAM EXCEL LIMITED,0.00,Mar-21
EREWASH BOROUGH COUNCIL,225166,Council Tax Collection,Fees Costs and Expenses,18/03/21,WILKIN CHAPMAN LLP,485.00,Mar-21
EREWASH BOROUGH COUNCIL,225210,Erewash Museum,Exhibitions,26/03/21,PICTORIAL LTD,116.00,Mar-21
EREWASH BOROUGH COUNCIL,225717,Allotments,Contracted Services,02/03/21,LLOYDS BANK,55.20,Mar-21
EREWASH BOROUGH COUNCIL,225250,Homelessness Prevention,Contracted Services,17/03/21,DERBYSHIRE DALES DISTRICT COUNCIL,"2,000.00",Mar-21
EREWASH BOROUGH COUNCIL,224704,Economic Development,Contracted Services,01/02/21,PROXIMITY FUTURES T/A ELEPHANT WIFI,303.33,Mar-21
EREWASH BOROUGH COUNCIL,224131,Homelessness,Contracted Services,13/02/21,PEOPLE POTENTIAL POSSIBILITIES,"13,829.50",Mar-21
EREWASH BOROUGH COUNCIL,225121,Balance Sheet,Payroll Collection A/c - Credit Union,24/03/21,DERBYSHIRE COMMUNITY BANK,330.00,Mar-21
EREWASH BOROUGH COUNCIL,225172,Household/Residual Waste Collection,Bins,05/02/21,MGB PLASTICS LTD,479.90,Mar-21
EREWASH BOROUGH COUNCIL,224319,Pride In Erewash,Spend to Save,19/02/21,PROTECTIVE WEAR SUPPLIES LTD,261.00,Mar-21
EREWASH BOROUGH COUNCIL,224877,Pride In Erewash,Spend to Save,08/03/21,RAILWAY SLEEPERS Ltd,330.04,Mar-21
EREWASH BOROUGH COUNCIL,225176,Treasury Management and Bank Charges,Allpay/Post Office Charges,28/02/21,ALLPAY LIMITED,384.73,Mar-21
EREWASH BOROUGH COUNCIL,223696,Street Scene,Street Furniture,09/02/21,NIBRA SIGNS LTD,448.26,Mar-21
EREWASH BOROUGH COUNCIL,225717,Balance Sheet,ICT Software Licence Payment in Advance,02/03/21,LLOYDS BANK,89.10,Mar-21
EREWASH BOROUGH COUNCIL,224299,Homelessness,Agency Staff,17/02/21,GREENACRE RECRUITMENT,575.15,Mar-21
EREWASH BOROUGH COUNCIL,224405,Green Space,Agency Staff,15/02/21,EXTRA PERSONNEL LTD,"2,798.72",Mar-21
EREWASH BOROUGH COUNCIL,225348,Transport Trading Account,Agency Staff,05/03/21,TOTAL TRANSPORT COMPLIANCE,"1,500.00",Mar-21
EREWASH BOROUGH COUNCIL,224970,Kerbside Dry Recycling Collection,Agency Staff,02/02/21,THORN BAKER LIMITED,"1,332.04",Mar-21
EREWASH BOROUGH COUNCIL,224989,Kerbside Dry Recycling Collection,Agency Staff,11/02/21,QUALITY SERVICE RECRUITMENT LTD,434.08,Mar-21
EREWASH BOROUGH COUNCIL,224992,Kerbside Dry Recycling Collection,Agency Staff,04/03/21,QUALITY SERVICE RECRUITMENT LTD,393.96,Mar-21
EREWASH BOROUGH COUNCIL,224378,Personnel,Recruitment Expenses,23/02/21,DERBYSHIRE COUNTY COUNCIL...,224.00,Mar-21
EREWASH BOROUGH COUNCIL,224762,Street Scene,Training,26/02/21,SLINTER MINING COMPANY,3.00,Mar-21
EREWASH BOROUGH COUNCIL,224702,Car Parking,Planned Preventative Maintenance,26/02/21,N B CONSTRUCTION,298.25,Mar-21
EREWASH BOROUGH COUNCIL,225158,Pedestrian Zones - Ilkeston and Long Eaton,Planned Preventative Maintenance,08/03/21,N B CONSTRUCTION,50.26,Mar-21
EREWASH BOROUGH COUNCIL,224389,Civic Accommodation - Ilkeston,Electricity,18/02/21,TOTAL GAS & POWER LTD,"1,358.32",Mar-21
EREWASH BOROUGH COUNCIL,224390,Civic Accommodation - Long Eaton,Electricity,18/02/21,TOTAL GAS & POWER LTD,21.67,Mar-21
EREWASH BOROUGH COUNCIL,224390,Shopmobility - Long Eaton,Electricity,18/02/21,TOTAL GAS & POWER LTD,237.92,Mar-21
EREWASH BOROUGH COUNCIL,224129,Civic Accommodation - Long Eaton,Gas,16/02/21,TOTAL GAS & POWER LTD,"1,196.77",Mar-21
EREWASH BOROUGH COUNCIL,225087,Balance Sheet,Grant Payments,15/02/21,DERBYSHIRE COUNTY COUNCIL...,"5,232.50",Mar-21
